{"text_format":"1","workbook":"xlsx","n_sheets":22,"sheets":["Cover Page","Contents","Facility Info","Operational Data","Operational Summary","Perf. Form 1","Energy Form 1","Improvements","Permit Compliance","Public Liasion","Residue Quality ","Water","Air (periodic)","Air (CEMS)","HCl","SO2","NOx","TOC","Particulates","CO 0.5hourly","CO 95% 10 min","NH3"],"not_rendered":{"charts":8,"images":3,"macros":1,"external_links":0,"defined_names":22,"comments":0,"pivot_tables":0},"unopened":[],"bounds":{"document_bytes":16777216,"sheet_cells":100000,"rows_first":2000,"rows_last":500,"rows_between":2000,"halvings":0,"cell_chars":16384,"cell_head_chars":4096},"cells_cut":0,"cells_raw":0,"read":"whole","date_system":"1900"}

{"sheet":"Cover Page","index":0,"n_rows":53,"n_cols":14,"rows_kept":53,"cut":false,"hidden":false,"merged":[[13,13,18,15],[34,1,34,8],[0,3,5,6],[7,1,23,8],[28,1,28,8],[30,1,30,8],[32,1,32,8],[48,2,48,3],[48,6,48,8],[52,2,52,3],[36,1,36,8],[40,2,40,8],[42,2,42,4],[44,2,44,4],[46,2,46,3],[46,6,46,8]]}
[null,null,null,"Add company logo"]
[null,null,null,null,null,null,null,null,null,null,null,null,null,"Version 20.1 "]
[]
[]
[]
[]
[]
[null,"Add photo"]
[]
[]
[]
[]
[null,null,null,null,null,null,null,null,null,null,null,null,null,"Notes:"]
[null,null,null,null,null,null,null,null,null,null,null,null,null,"This template may require adjustments by individual operators to meet specific reporting requirements as defined in the site Permit(s)"]
[]
[]
[]
[]
[]
[]
[]
[]
[]
[]
[]
[]
[]
[]
[null,"Annual Performance Report 2021"]
[]
[null,"Permit EPR/BT7116IW"]
[]
[null,"Lakeside Energy from Waste Limited"]
[]
[null,"other name of facility (if applicable)"]
[]
[null,"Lakeside EFW Ltd"]
[]
[null,"Year:",2021]
[]
[null,"Address:","Lakeside Road, Colnbrook, Berkshire, SL3 0FE"]
[]
[null,"Tel: ","01753 688435"]
[]
[null,"Email: ","martin.rogers@lakesideefw.co.uk"]
[]
[null,"Prepared by:","Martin Rogers",null,null,"Position:","EHS Manager"]
[]
[null,"Approved by:","Danny Coulston",null,null,"Position:","Director of Operations"]
[]
[null,"Version:",1]
[]
[null,"Issue Date:","2022-01-21"]

{"sheet":"Contents","index":1,"n_rows":44,"n_cols":11,"rows_kept":44,"cut":false,"hidden":false,"merged":[[4,10,7,14],[8,1,8,6],[3,1,3,6],[4,1,4,6],[5,1,5,6],[6,1,6,6],[7,1,7,6],[20,1,20,6],[9,1,9,6],[10,1,10,6],[11,1,11,6],[12,1,12,6],[13,1,13,6],[14,1,14,6],[15,1,15,6],[16,1,16,6],[17,1,17,6],[18,1,18,6],[19,1,19,6],[35,1,35,6],[21,1,21,6],[22,1,22,6],[23,1,23,6],[26,1,26,6],[27,1,27,6],[28,1,28,6],[29,1,29,6],[30,1,30,6],[31,1,31,6],[34,1,34,6],[43,0,46,9],[36,1,36,6],[37,1,37,6],[38,1,38,6],[39,1,39,6],[40,1,40,6],[41,1,41,6]]}
[{"$f":"+'Cover Page'!$B$29","v":"Annual Performance Report 2021"},null,null,null,{"$f":"+'Cover Page'!$B$33","v":"Lakeside Energy from Waste Limited"}]
[]
["Contents",null,null,null,null,null,null,null,null,null,"Notes:"]
["Section","Subject",null,null,null,null,null,"Page ",null,null,"Section references and Page nos. to be inserted"]
[null,"Facility Information",null,null,null,null,null,3,null,null,"Sections and Subjects may require adjustment by individual operators to meet specific reporting requirements as defined in the sites Permit(s)"]
[null,"Operational Summary",null,null,null,null,null,5]
[null,"Operational Data",null,null,null,null,null,4]
[null,"Performance Form 1",null,null,null,null,null,6]
[null,"Energy Form 1",null,null,null,null,null,7]
[null,"Permit Compliance",null,null,null,null,null,9]
[null,"Improvements",null,null,null,null,null,8]
[null,"Public Liasion",null,null,null,null,null,10]
[null,"Residue Quality - Optional",null,null,null,null,null,11]
[null,"Emissions to Water",null,null,null,null,null,12]
[null,"Emissions to Air (periodically monitored)",null,null,null,null,null,13]
[null,"Emissions to Air (continuously monitored)",null,null,null,null,null,14]
[null,"Hydrogen Chloride emissions",null,null,null,null,null,15]
[null,"Sulphur Dioxdie emsissions",null,null,null,null,null,16]
[null,"Oxides of Nitrogen emissions",null,null,null,null,null,17]
[null,"Total Organic Carbon emissions",null,null,null,null,null,18]
[null,"Particulate Matter emissions",null,null,null,null,null,19]
[null,"Carbon Monoxide emissions",null,null,null,null,null,20]
[null,"Ammonia emissions",null,null,null,null,null,21]
[]
[]
["Version Control"]
["Section","Information",null,null,null,null,null,"Date"]
[]
[]
[]
[]
[]
[]
["Distribution"]
["Copy","Name, Role",null,null,null,null,null,"No."]
[]
[]
[]
[]
[]
[]
[]
[]
["This report is required under the Industrial Emissions Directive’s Article 55(2) requirements on reporting and public information on waste incineration plants and co-incineration plants, which require the operator to produce an annual report on the functioning and monitoring of the plant and make it available to the public. "]

{"sheet":"Facility Info","index":2,"n_rows":22,"n_cols":11,"rows_kept":22,"cut":false,"hidden":false,"merged":[[4,0,17,8],[21,0,53,8],[4,10,13,13],[21,10,30,13]]}
[{"$f":"+'Cover Page'!$B$29","v":"Annual Performance Report 2021"},null,null,null,{"$f":"+'Cover Page'!$B$33","v":"Lakeside Energy from Waste Limited"}]
[]
["Plant Description and Design",null,null,null,null,null,null,null,null,null,"Notes:"]
[]
["Lakeside Energy from Waste (EfW)\n\nA joint venture project between two of the UK’s leading recycling and waste management companies; Grundon Waste Management and Viridor.\n\nThe Lakeside EfW facility at Colnbrook near Slough has been operational since 2010. Using advanced technology, this plant is capable of processessing over 450,000 tonnes of residual waste per year, generating 37MW of power – enough to provide electricity to every household in Slough (56,000 homes).\n\nThere is an education centre adjacent to Lakeside EfW, where schools and other groups can learn about sustainable waste management and energy from waste.\n(alt enter to make new para)",null,null,null,null,null,null,null,null,null,"Include summary of plant design, design capacity, no. of combustion lines, electrical and heat capacity and any other general information that descibes the facility, its location and purpose "]
[]
[]
[]
[]
[]
[]
[]
[]
[]
[]
[]
[]
[]
[]
["Summary of Operational Processes and Procedures"]
[]
["Lakeside operate an Integrated Management System (IMS) that is ISO 14001, ISO 45001, ISO 9001, ISO 22301 and ISO 50001 certified. It includes all the procedures for receiving and inspecting waste, auditing suppliers to ensure waste quality and compliance. Operations includes procedures for running the plant, showing how to start a line, run a line and shutdown a line. EHS includes procedures for monitoring and reporting compliance. Maintenance includes all the procedures for planned maintenance, unplanned maintenance, outages and preventative maintenance.",null,null,null,null,null,null,null,null,null,"Include summary of key processes and procedures such as (but not limited to); waste reception, control rooms, grate, bed and bolier, energy & heat  generation, cooling systems, residue management, emission controls, health and safety systems, maintenance"]

{"sheet":"Operational Data","index":3,"n_rows":65,"n_cols":11,"rows_kept":65,"cut":false,"hidden":false,"merged":[[3,1,3,2],[7,1,19,1],[23,1,26,1],[28,1,29,1],[52,0,56,0],[5,10,6,10],[7,10,18,10],[33,1,38,1],[30,2,30,5],[30,6,30,7]]}
[{"$f":"+'Cover Page'!$B$29","v":"Annual Performance Report 2021"},null,null,null,{"$f":"+'Cover Page'!$B$33","v":"Lakeside Energy from Waste Limited"}]
[]
["Operational Data",null,null,null,null,null,null,null,null,null,"Notes:"]
["Plant Size",null,null,"tonnes pa",null,"MWth",null,"MWe",null,null,"* - RDF to include SRF "]
["No. of combustion lines",2,null,"No. of Turbines:",null,1,null,null,null,null,"** - CHP plants only"]
[null,null,null,null,null,null,null,null,null,null,"2020 updates include;  heat in MWh, water in Litres, NCV in MJ/kg"]
["Waste types received","Unit","Q1","Q2","Q3","Q4","Year Total","%"]
["Household / Local Authority","tonnes",62492,60487,47949,63566,{"$f":"SUM(C8:F8)","v":234494},{"$f":"IF(G8>0,G8/$G$18,\"-\")","v":0.59588536346125498},null,null,"Availabiity Definition: 'the availability of a line is to be calculated by the number of hours the line reported Continuously Monitored emission levels to the Regulator through the calendar year divided by the total number of hours in that year. \nThe overall plant availability is calculated as the Mean of all lines in the plant. For clarity this includes periods of Other Than Normal Operating Conditions (OTNOC) and abnormal operation.'  \n\nRationale: The primary function of an Energy from Waste facility is the disposal of waste. It follows therefore that the availability of a plant is determined by the period of time a facility spends undertaking this activity."]
["Commercial & Industrial ",null,42444,40404,32083,42478,{"$f":"SUM(C9:F9)","v":157409},0.40000050823079775]
["Hazardous ",null,79,51,175,151,456,1.1587662189153339E-3]
["Clinical",null,1096,67,null,null,1163,2.9553620890318713E-3]
["Waste wood (biomass) ",null,null,null,null,null,0,"-"]
["Refuse Derived Fuel * - H'hold/LA",null,null,null,null,null,{"$f":"SUM(C13:F13)","v":0},"-"]
["Refuse Derived Fuel *  - C&I",null,null,null,null,null,0,"-"]
["Other [Please specify]",null,null,null,null,null,0,"-"]
["Other [Please specify]"]
["Other [Please specify]"]
["Total waste received",null,{"$f":"SUM(C8:C17)","v":106111},{"$f":"SUM(D8:D17)","v":101009},{"$f":"SUM(E8:E17)","v":80207},{"$f":"SUM(F8:F17)","v":106195},{"$f":"SUM(G8:G17)","v":393522},{"$f":"IF(G18>0,G18/$G$18,\"-\")","v":1}]
["Rejected Waste ",null,null,5,null,2,{"$f":"SUM(C19:F19)","v":7},{"$f":"IF(G19>0,G19/$G$18,\"-\")","v":1.7788077921945914E-5}]
["Unprocessed waste transferred out",null,null,null,null,null,{"$f":"SUM(C20:F20)","v":0},{"$f":"IF(G20>0,G20/$G$18,\"-\")","v":"-"}]
["Total waste combusted",null,104217,97434,75053,104978,{"$f":"SUM(C21:F21)","v":381682},{"$f":"IF(G21>0,G21/$G$18,\"-\")","v":0.96991273677202294}]
[]
["Energy Useage / Export","Unit","Q1","Q2","Q3","Q4","Year Total","KWh/te"]
["Power Generated","MWh",78989,76425,39721,20632,{"$f":"SUM(C24:F24)","v":215767},{"$f":"IF(G24>0,G24*1000/$G$21,\"-\")","v":565.30567330919462}]
["Power Exported",null,71173,68938,35277,18095,{"$f":"SUM(C25:F25)","v":193483},{"$f":"IF(G25>0,G25*1000/$G$21,\"-\")","v":506.92199265357027}]
["Power Used on site",null,7816,7487,5132,7481,{"$f":"SUM(C26:F26)","v":27916},{"$f":"IF(G26>0,G26*1000/$G$21,\"-\")","v":73.13941972636907}]
["Power Imported",null,0,193,2106,5523,7822,{"$f":"IF(G27>0,G27*1000/$G$21,\"-\")","v":20.4934998244612}]
["Parasitic Load","%",{"$f":"IF(C24>0,1-C25/(C24+C27),\"-\")","v":9.8950486776639757E-2},{"$f":"IF(D24>0,1-D25/(D24+D27),\"-\")","v":0.10023754209193658},{"$f":"IF(E24>0,1-E25/(E24+E27),\"-\")","v":0.15659741315418274},{"$f":"IF(F24>0,1-F25/(F24+F27),\"-\")","v":0.30816287516727203},{"$f":"IF(G24>0,1-G25/(G24+G27),\"-\")","v":0.13464884229546181}]
["Thermal Energy Produced **","MWh",null,null,null,null,{"$f":"SUM(C29:F29)","v":0},{"$f":"IF(G29>0,G29*1000/$G$18,\"-\")","v":"-"}]
["Thermal Energy Exported **",null,null,null,null,null,0,"-"]
["R1 value",null,null,null,null,null,"Design / Operational / n/a"]
[]
["Waste Disposal & Recovery","Unit","Q1","Q2","Q3","Q4","Year Total","% inputs"]
["APC Residues - produced","tonnes",3417,3185,2298,3025,{"$f":"SUM(C34:F34)","v":11925},{"$f":"IF(G34>0,G34/$G$21,\"-\")","v":3.1243286295921737E-2}]
["IBA - produced",null,20398,20026,14575,18820,73819,{"$f":"IF(G35>0,G35/$G$21,\"-\")","v":0.19340445711351334}]
["Metals recycling",null,1121,1066,882,1054,{"$f":"SUM(C36:F36)","v":4123},{"$f":"IF(G36>0,G36/$G$21,\"-\")","v":1.0802186113046987E-2}]
["Other",null,0,0,0,0,{"$f":"SUM(C37:F37)","v":0},{"$f":"IF(G37>0,G37/$G$18,\"-\")","v":"-"}]
["Other",null,0,0,0,0,0,{"$f":"IF(G38>0,G38/$G$18,\"-\")","v":"-"}]
["Other",null,0,0,0,0,0,{"$f":"IF(G39>0,G39/$G$18,\"-\")","v":"-"}]
[]
["Raw Material Usage","Unit","Q1","Q2","Q3","Q4","Year Total","kg or Ltr /te"]
["Mains Water","ltrs",23578,22005,18529,12761,{"$f":"SUM(C42:F42)","v":76873},{"$f":"IF(G42>0,G42/$G$21,\"-\")","v":0.2014058823837645}]
["Other Water","ltrs",null,null,null,null,0,{"$f":"IF(G43>0,G43/$G$18,\"-\")","v":"-"}]
["Ammonia","kgs",95849,40622,25680,39750,201901,{"$f":"IF(G44>0,G44/$G$21,\"-\")","v":0.52897700179730767}]
["Urea","kgs",null,null,null,null,{"$f":"SUM(C45:F45)","v":0},{"$f":"IF(G45>0,G45/$G$18,\"-\")","v":"-"}]
["Activated Carbon","kgs",42449,40614,30347,41197,154607,{"$f":"IF(G46>0,G46/$G$21,\"-\")","v":0.40506756933782573}]
["Lime / hydrated lime","kgs",1371055,1299513,883542,1108898,4663008,{"$f":"IF(G47>0,G47/$G$18,\"-\")","v":11.849421379236739}]
["Fuel oil","ltrs",19375,42171,123039,23066,207651,{"$f":"IF(G48>0,G48/$G$21,\"-\")","v":0.54404189875341258}]
["Gas","cf",0,0,0,0,0]
["Other",null,0,0,0,0,0]
[]
["Summary ","Line/Unit","Q1","Q2","Q3","Q4","Year Total",null,null,"Hrs in year "]
["Availability of waste combustion by line, hrs",1,2133.5,2096,1709,2208,{"$f":"SUM(C53:F53)","v":8146.5},{"$f":"G53/$J$53","v":0.92742486338797814},null,8784]
[null,2,2121,2075,1652,2166,8014,{"$f":"G54/$J$53","v":0.91234061930783239}]
[null,3,null,null,null,null,0,"x %"]
[null,4,null,null,null,null,0,"x %"]
[null,5,null,null,null,null,{"$f":"SUM(C57:F57)","v":0},"x %"]
["Overall Availability, mean avg. of all lines, hrs",null,{"$f":"(C53+C54)/2","v":2127.25},{"$f":"(D53+D54)/2","v":2085.5},1680.5,2187,{"$f":"AVERAGE(G53:G54)","v":8080.25},{"$f":"G58/$J$53","v":0.91988274134790526}]
["Hours of turbine operations, hrs",1,2160,2061,1247,575,6043,{"$f":"G59/$J$53","v":0.68795537340619306}]
["Hours of turbine operations, hrs",2,null,null,null,null,0,"x %"]
["Hours of heat / steam export",null,null,null,null,null,0,{"$f":"IF(B61>0,G60/J53,\"n/a\")","v":"n/a"}]
["Net Calorific Value of waste","MJ/kg",10183,10177,10138,9866,null,"-"]
["Abnormal Events","qty.",1,0,1,0,2,{"$f":"IF(G63>0,\"yes\",\"no\")","v":"yes"}]
["Abnormal operation","hours",1,0,0.5,0,1.5,{"$f":"+(G64)/J53","v":1.7076502732240437E-4}]
["Permit Breaches","qty.",1,1,1,0,3,{"$f":"IF(G65>0,\"yes\",\"no\")","v":"yes"}]

{"sheet":"Operational Summary","index":4,"n_rows":31,"n_cols":11,"rows_kept":31,"cut":false,"hidden":false,"merged":[[4,0,26,8],[30,0,51,8],[4,10,13,13],[30,10,39,13]]}
[{"$f":"+'Cover Page'!$B$29","v":"Annual Performance Report 2021"},null,null,null,{"$f":"+'Cover Page'!$B$33","v":"Lakeside Energy from Waste Limited"}]
[]
["Summary of Plant Operations and Maintenance during the reporting year",null,null,null,null,null,null,null,null,null,"Notes:"]
[]
["The plant operates 2 lines and had an outage during August and September, with the turbine outage starting when both lines were shut down. Line 1 was operational for 8147 hours which is 92.7 % availability. Line 2 operated for 8014 hours an availability of 91.2 %, with the turbine running for 6043 hours an availability of 68.8 %. The rotor was sent to Italy and was delayed in its return. The outage for each line was an oportunity to repair and renew each line ready for the next phase of running.\nThe turbine and generator were given a major overhaul during the outage\nNoise was measured, on site then mapped back to the three local receptors. The noise limit of 39 dB(A) was not exceeded. \nBorehole results for 2021 showed no anomalies from previous years readings. The sample points occupy the 4 corners of the site.\n",null,null,null,null,null,null,null,null,null,"Include summary of key operational and/or mainteanance activity undertaken in the year, such as any major component upgrades and/or replacements "]
[]
[]
[]
[]
[]
[]
[]
[]
[]
[]
[]
[]
[]
[]
[]
[]
[]
[]
[]
[]
[]
[]
[]
["Summary of Residue Handling for the reporting year"]
[]
["Material and disposal point listed below.\nIBA\nDays : Transport Avenue, Brentford TW8 9HF\nAPC\nCarbon8 - (deemed hazardous) Norfolk House, High Street, Brandon, Suffolk IP27\n0AX, Tel 01842 812229, License: JP 3332/FK\nCarbon8 Aggregates Ltd, Aggregate production facility, Central Avenue, Hallen,\nAvonmouth, BS10 7SD, Licence: HP3638WW\nOVERSIZE\nScrapped metal that has gone through the furnace.\nW N Thomas Metal Recycling, Stoke Gardens, Slough, Berkshire, SL1 3QA, Licence:\nCBDU80509\nM D J Light, Greystone Quarry Top Yard, Southerham, Lewes, East Sussex, BN8\n6JN, Licence: NP3333CF",null,null,null,null,null,null,null,null,null,"Include in here a summary of residue handling regimes and destinations "]

{"sheet":"Perf. Form 1","index":5,"n_rows":54,"n_cols":10,"rows_kept":54,"cut":false,"hidden":false,"merged":[[9,0,9,9],[10,0,10,1],[10,2,10,3],[10,4,10,5],[10,6,10,7],[10,8,10,9],[2,0,2,4],[2,6,2,8],[3,1,3,4],[5,3,5,4],[5,6,5,7],[8,0,8,1],[8,2,8,3],[8,4,8,5],[8,6,8,7],[8,8,8,9],[11,0,11,1],[11,2,11,3],[11,4,11,5],[11,6,11,7],[11,8,11,9],[12,0,12,1],[12,2,12,3],[12,4,12,5],[12,6,12,7],[12,8,12,9],[15,0,15,1],[15,2,15,3],[15,4,15,5],[15,6,15,7],[15,8,15,9],[16,0,16,9],[13,0,13,1],[13,2,13,3],[13,4,13,5],[13,6,13,7],[13,8,13,9],[14,0,14,3],[14,4,14,5],[14,6,14,7],[14,8,14,9],[17,0,17,1],[17,2,17,3],[17,4,17,5],[17,6,17,7],[17,8,17,9],[18,0,18,1],[18,2,18,3],[18,4,18,5],[18,6,18,7],[18,8,18,9],[19,0,19,1],[19,2,19,3],[19,4,19,5],[19,6,19,7],[19,8,19,9],[20,0,20,1],[20,2,20,3],[20,4,20,5],[20,6,20,7],[20,8,20,9],[21,0,21,1],[21,2,21,3],[21,4,21,5],[21,6,21,7],[21,8,21,9],[22,0,22,3],[22,4,22,5],[22,6,22,7],[22,8,22,9],[31,0,31,3],[31,7,31,8],[32,0,32,3],[32,4,32,5],[32,7,32,8],[33,0,33,3],[33,4,33,5],[33,7,33,8],[23,0,23,3],[23,4,23,5],[23,6,23,7],[23,8,23,9],[25,0,25,9],[26,0,28,9],[36,0,36,3],[36,4,36,5],[36,7,36,8],[37,0,37,3],[37,4,37,5],[37,7,37,8],[34,0,34,3],[34,4,34,5],[34,7,34,8],[35,0,35,3],[35,4,35,5],[35,7,35,8],[47,0,47,1],[49,0,49,9],[50,0,51,9],[38,0,38,9],[39,0,40,9],[43,0,43,1],[43,2,43,9],[45,0,45,1],[46,0,46,1]]}
[{"$f":"+'Cover Page'!C39","v":2021}," Annual Reporting Performance Form 1"]
[]
[{"$f":"+'Cover Page'!B31","v":"Permit EPR/BT7116IW"},null,null,null,null,"Operator: ",{"$f":"+'Cover Page'!B37:I37","v":0}]
["Facility:",{"$f":"+'Cover Page'!B33:I33","v":"Lakeside Energy from Waste Limited"},null,null,null,"Form:","Performance 1"]
[]
["Reporting  Period from: ",null,null,"1st January 2021",null,"to:","31st December 2021"]
[]
[{"$f":"+A1","v":2021},"Annual Reporting of Waste Disposal and Recovery"]
["Waste Description",null,"Disposal Route(s)",null,"Disposal Tonnes",null,"Recovery Tonnes",null,"% / tonne of waste incinerated"]
["1) Hazardous Wastes"]
["APC Residues",null,"R05",null,null,null,11925,null,{"$f":"IF((E11+G11)>0,(E11+G11)/'Operational Data'!$G$18, \"-\")","v":3.030326131702929E-2}]
["IBA",null,null,null,null,null,null,null,{"$f":"IF((E12+G12)>0,(E12+G12)/'Operational Data'!$G$18, \"-\")","v":"-"}]
[null,null,null,null,null,null,null,null,{"$f":"IF((E13+G13)>0,(E13+G13)/'Operational Data'!$G$18, \"-\")","v":"-"}]
[null,null,null,null,null,null,null,null,{"$f":"IF((E14+G14)>0,(E14+G14)/'Operational Data'!$G$18, \"-\")","v":"-"}]
["Total Hazardous Waste",null,null,null,{"$f":"SUM(E11:F14)","v":0},null,{"$f":"SUM(G11:H14)","v":11925},null,{"$f":"IF((E15+G15)>0,(E15+G15)/'Operational Data'!$G$18, \"-\")","v":3.030326131702929E-2}]
[]
["2) Non-Hazardous Wastes"]
["IBA",null,"R11",null,null,null,73819,null,{"$f":"IF((E18+G18)>0,(E18+G18)/'Operational Data'!$G$18, \"-\")","v":0.18758544630287508}]
["Ferrous Metal",null,"R04",null,null,null,4123,null,{"$f":"IF((E19+G19)>0,(E19+G19)/'Operational Data'!$G$18, \"-\")","v":1.0477177896026143E-2}]
["Process Water",null,null,null,null,null,null,null,{"$f":"IF((E20+G20)>0,(E20+G20)/'Operational Data'!$G$18, \"-\")","v":"-"}]
[null,null,null,null,null,null,null,null,{"$f":"IF((E21+G21)>0,(E21+G21)/'Operational Data'!$G$18, \"-\")","v":"-"}]
[null,null,null,null,null,null,null,null,{"$f":"IF((E22+G22)>0,(E22+G22)/'Operational Data'!$G$18, \"-\")","v":"-"}]
["Total Non-Hazardous Waste",null,null,null,{"$f":"SUM(E18:F22)","v":0},null,{"$f":"SUM(G18:H22)","v":77942},null,{"$f":"IF((E23+G23)>0,(E23+G23)/'Operational Data'!$G$18, \"-\")","v":0.19806262419890119}]
["TOTAL WASTE",null,null,null,{"$f":"+E23+E15","v":0},null,{"$f":"+G23+G15","v":89867},null,{"$f":"IF((E24+G24)>0,(E24+G24)/'Operational Data'!$G$18, \"-\")","v":0.22836588551593048}]
[]
["Operator’s comments :"]
[]
[]
[]
[]
[{"$f":"+A1","v":2021},"Annual Reporting of Water and Other Raw Material Usage"]
["Raw Material",null,null,null,"Usage",null,"Unit","Specific Useage",null,"Unit"]
["Mains Water",null,null,null,{"$f":"+'Operational Data'!G42","v":76873},null,"m3",{"$f":"IF(E33>0,E33/'Operational Data'!$G$18,\"-\")","v":0.19534613058482117},null,"m3/te"]
["Total Water",null,null,null,{"$f":"+'Operational Data'!G43+'Operational Data'!G42","v":76873},null,"m3",{"$f":"IF(E34>0,E34/'Operational Data'!$G$18,\"-\")","v":0.19534613058482117},null,"m3/te"]
["Urea / Ammonia",null,null,null,{"$f":"+'Operational Data'!G44","v":201901},null,"kg",{"$f":"IF(E35>0,E35/'Operational Data'!$G$18,\"-\")","v":0.51306153150268596},null,"kg/te"]
["Activated Carbon",null,null,null,{"$f":"+'Operational Data'!G46","v":154607},null,"kg",{"$f":"IF(E36>0,E36/'Operational Data'!$G$18,\"-\")","v":0.39288019475404168},null,"kg/te"]
["Lime / hydrated lime / Sodium Bicarb.",null,null,null,{"$f":"+'Operational Data'!G47","v":4663008},null,"kg",{"$f":"IF(E37>0,E37/'Operational Data'!$G$18,\"-\")","v":11.849421379236739},null,"kg/te"]
[]
["Operator’s comments :"]
[]
[]
[]
[{"$f":"+A31","v":2021},"Annual Reporting of other performance indicators "]
["Parameter",null,"Results by Line"]
[null,null,"A1","A2","A3","A4","A5",null,"Turbine 1","Turbine 2"]
["Operating hours for the year, hours",null,8147,8014,null,null,null,null,6043]
["Number of periods of abnormal operation, qty.",null,2,0]
["Cumulative hours of abnormal operation for this year, hours",null,2,0]
[]
["Operator’s comments :"]
["One period of abnormal operation was due to a communication error between the CEMS and the computer, with the other being a bag failure which caused a spike in particulates of 34.29 mg/m3."]
[]
[]
["Signed: ",null,null,null,null,null,"Date:","2021-01-22"]

{"sheet":"Energy Form 1","index":6,"n_rows":29,"n_cols":8,"rows_kept":29,"cut":false,"hidden":false,"merged":[[2,6,2,8],[4,1,4,4],[6,3,6,4],[6,6,6,7],[8,0,8,2],[8,3,8,4],[8,6,8,8],[9,0,9,2],[9,3,9,4],[9,6,9,8],[10,0,10,2],[10,3,10,4],[10,6,10,8],[11,0,11,2],[11,3,11,4],[11,6,11,8],[12,0,12,2],[12,3,12,4],[12,6,12,8],[13,0,13,2],[13,3,13,4],[13,6,13,8],[14,0,14,2],[14,3,14,4],[14,6,14,8],[15,0,15,2],[15,3,15,4],[15,6,15,8],[17,0,17,8],[18,0,24,8]]}
[{"$f":"+'Cover Page'!C39","v":2021}," Annual Reporting of Energy Usage/Export"]
[]
[{"$f":"+'Cover Page'!B31","v":"Permit EPR/BT7116IW"},null,null,null,null,"Operator: ",{"$f":"+'Cover Page'!B37:I37","v":0}]
[]
["Facility:",{"$f":"+'Cover Page'!B33:I33","v":"Lakeside Energy from Waste Limited"},null,null,null,"Form:","Energy 1"]
[]
["Reporting  Period from: ",null,null,{"$f":"+'Perf. Form 1'!D6:E6","v":"1st January 2021"},null,"to:",{"$f":"+'Perf. Form 1'!G6:H6","v":"31st December 2021"}]
[]
["Energy Source",null,null,"Energy Usage",null,"Unit","Specific Useage (KWh/tonne incinerated"]
["Electricity Produced",null,null,{"$f":"+'Operational Data'!G24","v":215767},null,"MWh",{"$f":"+'Operational Data'!H24","v":565.30567330919462}]
["Electricity Imported   ",null,null,{"$f":"+'Operational Data'!G27","v":7822},null,"MWh",{"$f":"+'Operational Data'!H27","v":20.4934998244612}]
["Electricity Exported",null,null,{"$f":"+'Operational Data'!G25","v":193483},null,"MWh",{"$f":"+'Operational Data'!H25","v":506.92199265357027}]
["Gas Oil",null,null,219645,null,"tonnes"]
["Steam/hot water exported",null,null,{"$f":"+'Operational Data'!G30","v":0},null,"GWh",{"$f":"+'Operational Data'!H30","v":"-"}]
[]
[]
[]
["Operator’s comments :"]
["Gas oil on this sheet includes vehicles used on site. Operational data refers to burners in furnace only. The Lakeside facility is equipped with solar panels on the roof which generated 206517 Kw during 2021."]
[]
[]
[]
[]
[]
[]
[]
[]
[]
["Signed: ",null,null,null,null,null,"Date:","2021-01-22"]

{"sheet":"Improvements","index":7,"n_rows":39,"n_cols":5,"rows_kept":39,"cut":false,"hidden":false,"merged":[[38,0,46,9],[47,0,47,9],[37,0,37,9],[4,0,4,9],[5,0,13,9],[15,0,15,9],[16,0,24,9],[26,0,26,9],[27,0,35,9]]}
[{"$f":"+'Cover Page'!$B$29","v":"Annual Performance Report 2021"},null,null,null,{"$f":"+'Cover Page'!$B$33","v":"Lakeside Energy from Waste Limited"}]
[]
["Summary of Plant Improvements"]
[]
["Summary of any efficiency improvements that have been completed within the year."]
["LED light replacements have continued across the site. Software changes have been made to the grate control software to allow improved control over changing waste conditions. There are now different settings for wet waste and dry waste. Car charging points have been installed to encourage the purchase of electric vehicles. Generator set point has been increased to generate more electricity."]
[]
[]
[]
[]
[]
[]
[]
[]
[]
["Summary of any permit improvement conditions that have been completed within the year and the resulting environmental benefits."]
[]
[]
[]
[]
[]
[]
[]
[]
[]
[]
["Summary of any changes to the plant or operating techniques which required a variation to the permit and a summary of the resulting environmental impact."]
["Lakeside were allowed to incinerate hazardous tobacco under an LEP (Local Enforcement Position). The emissions showed no noticeable change from burning normal waste. Lakeside were also allowed to incinerate bagged clinical waste under an RPS Regulatory Position Statement, which again showed no change to the emissions from the facility. These additional waste streams were in place of existing waste, not in addition to existing waste, so the throughput of the plant was not affected. The permit has now been varied to allow these wastes on a full time basis. The clinical waste requires a seperate feed to be installed which will be completed in 2022."]
[]
[]
[]
[]
[]
[]
[]
[]
[]
["Summary of any other improvements made to the plant or planned to be made and a summary of the resulting environmental benefits."]
["Lakeside are preparing for the lowering of emission limits for NOx, HCl, SO2, Particulates, group 3 metals, cadmium and thalium, mercury, Dioxins and ammonia. All limits are achievable with the existing set up. "]

{"sheet":"Permit Compliance","index":8,"n_rows":34,"n_cols":12,"rows_kept":34,"cut":false,"hidden":false,"merged":[[8,11,17,14],[33,4,33,8],[9,0,9,1],[9,2,9,4],[9,5,9,8],[10,0,10,1],[10,2,10,4],[10,5,10,8],[11,0,11,1],[11,2,11,4],[11,5,11,8],[12,0,12,1],[12,2,12,4],[12,5,12,8],[13,0,13,1],[13,2,13,4],[7,0,7,1],[7,2,7,8],[8,0,8,1],[8,2,8,4],[8,5,8,8],[13,5,13,8],[14,0,14,1],[14,2,14,4],[14,5,14,8],[15,0,15,1],[16,2,16,4],[16,5,16,8],[15,2,15,4],[15,5,15,8],[16,0,16,1],[19,7,19,9],[20,1,20,3],[20,4,20,6],[20,7,20,9],[21,1,21,3],[21,4,21,6],[21,7,21,9],[32,1,32,3],[32,4,32,6],[32,7,32,9],[29,1,29,3],[29,4,29,6],[29,7,29,9],[30,1,30,3],[30,4,30,6],[30,7,30,9],[31,1,31,3],[31,4,31,6],[31,7,31,9],[27,1,27,3],[27,4,27,6],[27,7,27,9],[28,1,28,3],[28,4,28,6],[28,7,28,9],[25,1,25,3],[25,4,25,6],[25,7,25,9],[26,0,26,10],[18,0,18,10],[24,1,24,3],[24,4,24,6],[24,7,24,9],[22,1,22,3],[22,4,22,6],[22,7,22,9],[23,1,23,3],[23,4,23,6],[23,7,23,9],[19,1,19,3],[19,4,19,6]]}
[{"$f":"+'Cover Page'!$B$29","v":"Annual Performance Report 2021"},null,null,null,{"$f":"+'Cover Page'!$B$33","v":"Lakeside Energy from Waste Limited"}]
[]
["Summary of Permit Compliance"]
[]
["Compliance with permit limits for continuously monitored pollutants"]
[]
["The plant met its emission limits as shown in the table below:"]
["Substance",null,"Percentage time compliant during operation",null,null,null,null,null,null,null,null,"Notes:"]
[null,null,"Half-hourly limit",null,null,"Daily limit",null,null,null,null,null,"Report to 2 decimal places, i.e. xx.xx%\n\nPlease provide a brief summary of each notification or non-compliance in the table (rather than just referring to notifications that were sent to the Regulator).  \n\n"]
["Particulates",null,">99.99%",null,null,1]
["Oxides of nitrogen",null,1,null,null,">99.99%"]
["Sulphur dioxide",null,1,null,null,1]
["Carbon monoxide",null,">99.99 % 95% of 10-min averages",null,null,1]
["Total organic carbon",null,1,null,null,1]
["Hydrogen chloride",null,1,null,null,100]
["Hydrogen fluoride",null,1,null,null,1]
[null,null,"xx.xx %",null,null,"xx.xx %"]
[]
["Summary of any notifications or non-compliances under the permit"]
["Date","Summary of notification or non-compliance [including Line/Reference]",null,null,"Reason ",null,null,"Measures taken to prevent reoccurrence"]
["2021-01-12","NOx daily average at 200.06 mg/m3",null,null,"Last half hour average high.",null,null,"Ammonia dosing"]
["2021-04-08","Bag failure causing spike at 85.40 mg/m3",null,null,"Abnormal operation",null,null,"Bag capped."]
["2021-05-29","Deionised water pumped to surface water drain.",null,null,"Bellows split causing bund\n to flood.",null,null,"Bellows repaired."]
["2021-09-25","Bag failure causing spike at 34.92 mg/m3",null,null,"Abnormal operation",null,null,"Bag capped."]
[]
[]
["Summary of any complaints received and actions to taken to resolve them."]
["Date","Summary of complaint [including Line/Reference]",null,null,"Reason *",null,null,"Measures taken to prevent reoccurrence"]
[]
[]
[]
[]
[]
[null,null,null,null,"* including whether substantiated by the operator or the EA"]

{"sheet":"Public Liasion","index":9,"n_rows":29,"n_cols":5,"rows_kept":29,"cut":false,"hidden":false,"merged":[[16,0,16,1],[16,2,16,9],[5,0,5,1],[5,2,5,9],[6,0,7,1],[6,2,7,9],[8,0,9,1],[8,2,9,9],[10,0,11,1],[10,2,11,9],[12,0,13,1],[12,2,13,9],[15,0,15,9],[17,0,18,1],[17,2,18,9],[19,0,20,1],[19,2,20,9],[21,0,22,1],[21,2,22,9],[23,0,24,1],[23,2,24,9],[25,0,26,1],[25,2,26,9],[28,0,28,9]]}
[{"$f":"+'Cover Page'!$B$29","v":"Annual Performance Report 2021"},null,null,null,{"$f":"+'Cover Page'!$B$33","v":"Lakeside Energy from Waste Limited"}]
[]
["Details of Public & Stakeholder Liasion"]
[]
["Summary of events held during the reporting year."]
["Date",null,"Description"]
[null,null,"No events held due to Covid 19."]
[]
[]
[]
[]
[]
[]
[]
[]
["List of events planned for next year"]
["Date",null,"Description"]
[null,null,"Covid 19 dependant. Nothing provisionally planned."]
[]
[]
[]
[]
[]
[]
[]
[]
[]
[]
["If you wish to be involved in the public liasion programme, please contact _________________"]

{"sheet":"Residue Quality ","index":10,"n_rows":36,"n_cols":6,"rows_kept":36,"cut":false,"hidden":false,"merged":[[16,0,17,1],[16,2,17,6],[18,0,19,1],[18,2,19,6],[12,0,12,6],[13,0,13,1],[13,2,13,6],[5,0,6,6],[7,0,8,6],[9,0,10,6],[14,0,15,1],[14,2,15,6],[20,0,21,1],[20,2,21,6],[22,0,23,1],[22,2,23,6],[31,3,31,4],[27,2,28,2],[28,3,28,4],[28,5,28,6],[27,3,27,6],[26,0,26,6],[35,0,40,6],[32,3,32,4],[34,0,34,6],[27,0,28,1],[29,0,29,1],[30,0,30,1],[31,0,31,1],[32,0,32,1],[29,3,29,4],[30,3,30,4],[29,5,29,6],[30,5,30,6],[31,5,31,6],[32,5,32,6]]}
[{"$f":"+'Cover Page'!$B$29","v":"Annual Performance Report 2021"},null,null,null,{"$f":"+'Cover Page'!$B$33","v":"Lakeside Energy from Waste Limited"}]
[]
["Residue Quality Monitoring Requirements"]
[]
["Summary of monitoring undertaken and compliance"]
["Lakeside carry out twice monthly sampling of IBA in accordance with the ESA IBA scheme. All ash returned \nnon-hazardous for the year. "]
[]
["APC was sampled quarterly and returned results that were within specification."]
[]
[]
[]
[]
["Commentary on any specific events"]
["Date & Event",null,"Description"]
[]
[]
[]
[]
[]
[]
[]
[]
[]
[]
[]
[]
["Residue Quality Monitoring Results"]
["Parameter (unit) ",null,"Limit","Normal Operation "]
[null,null,null,"Bottom ash  ",null,"APC Residues"]
["Loss on Ignition (average %)",null,"<5%"]
["Total Organic Carbon (average %)",null,"<3%",0.61]
["No. of Assessments Undertaken",null,"---",24,null,4]
["No. of Hazardous Results",null,"---",0]
[]
["Comments :"]
["4 Compliance monitoring assessments on both APC and IBA carried out during the year along with 24 hazardous waste assessments for IBA. All IBA results returned non-hazardous."]

{"sheet":"Water","index":11,"n_rows":23,"n_cols":10,"rows_kept":23,"cut":false,"hidden":false,"merged":[[5,0,6,9],[7,0,8,9],[9,0,10,9],[12,0,12,9],[13,0,13,1],[13,2,13,9],[21,0,21,9],[22,0,22,2],[22,3,22,5],[14,0,15,1],[14,2,15,9],[16,0,17,1],[16,2,17,9],[18,0,19,1],[18,2,19,9],[23,0,23,2],[23,3,23,5],[24,0,24,2],[24,3,24,5],[25,0,25,2],[25,3,25,5],[29,0,29,2],[29,3,29,5],[26,0,26,2],[26,3,26,5],[27,0,27,2],[27,3,27,5],[28,0,28,2],[28,3,28,5]]}
[{"$f":"+'Cover Page'!$B$29","v":"Annual Performance Report 2021"},null,null,null,{"$f":"+'Cover Page'!$B$33","v":"Lakeside Energy from Waste Limited"}]
[]
["Emissions to Water"]
[]
["Summary of monitoring undertaken and compliance"]
["Any water generated on site is used in the process. This means there is no industrial effluent discharged to sewer."]
[]
[]
[]
[]
[]
[]
["Commentary on any specific events"]
["Date & Event",null,"Description"]
[]
[]
[]
[]
[]
[]
[]
["Emissions to Water / Sewer"]
["Parameter",null,null,"Monitoring Frequency",null,null,"Limit","Target","Max.","Average"]

{"sheet":"Air (periodic)","index":12,"n_rows":40,"n_cols":13,"rows_kept":40,"cut":false,"hidden":false,"merged":[[5,12,8,15],[9,12,11,15],[8,0,8,9],[5,0,6,9],[11,0,11,1],[12,0,12,1],[11,3,11,4],[12,3,12,4],[9,0,10,1],[9,5,9,9],[9,3,10,4],[9,2,10,2],[16,0,16,1],[17,0,17,1],[18,0,18,1],[13,0,13,1],[14,0,14,1],[15,0,15,1],[39,0,40,9],[25,0,25,1],[26,0,26,1],[22,0,22,1],[23,0,23,1],[37,0,37,1],[27,0,27,1],[28,0,28,1],[29,0,29,1],[30,0,30,1],[31,0,31,1],[32,0,32,1],[37,3,37,4],[29,3,29,4],[30,3,30,4],[36,3,36,4],[38,0,38,9],[19,0,19,1],[20,0,20,1],[21,0,21,1],[34,3,34,4],[35,3,35,4],[33,0,33,1],[34,0,34,1],[35,0,35,1],[36,0,36,1],[24,0,24,1],[32,3,32,4],[13,3,13,4],[14,3,14,4],[15,3,15,4],[16,3,16,4],[17,3,17,4],[18,3,18,4],[27,3,27,4],[33,3,33,4],[19,3,19,4],[20,3,20,4],[21,3,21,4],[22,3,22,4],[23,3,23,4],[24,3,24,4],[31,3,31,4],[25,3,25,4],[26,3,26,4],[28,3,28,4]]}
[{"$f":"+'Cover Page'!$B$29","v":"Annual Performance Report 2021"},null,null,null,{"$f":"+'Cover Page'!$B$33","v":"Lakeside Energy from Waste Limited"}]
[]
["Emissions to Air (periodically monitored)"]
[]
["Summary of monitoring undertaken, standards used and compliance",null,null,null,null,null,null,null,null,null,null,null,"Notes:"]
[null,null,null,null,null,null,null,null,null,null,null,null,"Template may require adjustment for any bespoke monitoring requirements of permit. "]
[]
[]
["Results of emissions to air that are periodically monitored"]
["Substance",null,"Ref. Period","Emission Limit Value",null,"Average",null,null,null,null,null,null,"User to add additional tables as necessary, depending on whether quarterly or bi-annual reporting is required for the compliance year"]
[null,null,null,null,null,"A1","A2","A3","A4","A5"]
["Hydrogen fluoride",null,"1 hr","2 mg/m3",null,0.01,0.01]
["Cd and Th and their compounds",null,"6-8hrs","0.05 mg/m3",null,6.9999999999999999E-4,8.0000000000000004E-4]
["Hg and its compounds",null,"6-8hrs","0.05 mg/m3",null,6.1999999999999998E-3,3.7000000000000002E-3]
["Sb, As, Pb, Cr, Co, Cu, Mn, Ni, V and their compounds",null,"6-8hrs","0.5 mg/m3",null,4.2000000000000003E-2,0.08]
["Dioxins & Furans (I-TEQ)",null,"6-8hrs","0.1 ng/m3",null,8.0999999999999996E-3,8.5000000000000006E-3]
["PCBs (WHO-TEQ Humans / Mammals)",null,"6-8hrs","None set ng/m3",null,3.2299999999999999E-4,5.9999999999999995E-4]
["PCBs (WHO-TEQ Fish)",null,"6-8hrs","None set ng/m3",null,1.9000000000000001E-5,0]
["PCBs (WHO-TEQ Birds)",null,"6-8hrs","None set ng/m3",null,7.1700000000000002E-3,2.0999999999999999E-3]
["Dioxins & Furans (WHO-TEQ Humans / Mammals)",null,"6-8hrs","None set ng/m3",null,7.1000000000000004E-3,7.9000000000000008E-3]
["Dioxins & Furans (WHO-TEQ Fish)",null,"6-8hrs","None set ng/m3",null,7.9000000000000008E-3,8.6E-3]
["Dioxins & Furans (WHO-TEQ Birds)",null,"6-8hrs","None set ng/m3",null,1.2999999999999999E-2,1.67E-2]
["Anthanthrene",null,"6-8hrs","None set µg/m3"]
["Benzo(a)anthracene",null,"6-8hrs","None set µg/m3"]
["Benzo(a)pyrene",null,"6-8hrs","None set µg/m3"]
["Benzo(b)fluoranthene",null,"6-8hrs","None set µg/m3"]
["Benzo(b)naptho(2,1-d) thiophene",null,"6-8hrs","None set µg/m3"]
["Benzo(c)phenanthrene",null,"6-8hrs","None set µg/m3"]
["Benzo(ghi)perylene",null,"6-8hrs","None set µg/m3"]
["Benzo(k)fluoranthene",null,"6-8hrs","None set µg/m3"]
["Cholanthrene",null,"6-8hrs","None set µg/m3"]
["Chrysene",null,"6-8hrs","None set µg/m3"]
["Cyclopenta(cd)pyrene",null,"6-8hrs","None set µg/m3"]
["Dibenzo(ai)pyrene",null,"6-8hrs","None set µg/m3"]
["Dibenzo(ah)anthracene",null,"6-8hrs","None set µg/m3"]
["Fluoranthene",null,"6-8hrs","None set µg/m3"]
["Indeno(123-cd) pyrene",null,"6-8hrs","None set µg/m3"]
["Naphthalene",null,"6-8hrs","None set µg/m3"]
["Comments :"]
["The periodic monitoring is carried out twice per annum. The above set of results represent the higher of the two readings over the year so worse case example."]

{"sheet":"Air (CEMS)","index":13,"n_rows":29,"n_cols":16,"rows_kept":29,"cut":false,"hidden":false,"merged":[[27,0,27,12],[29,0,30,12],[13,0,14,0],[5,0,6,12],[7,0,8,12],[10,0,10,12],[11,0,12,0],[11,2,12,2],[11,1,12,1],[11,3,11,4],[11,5,11,6],[11,7,11,8],[11,9,11,10],[11,11,11,12]]}
[{"$f":"+'Cover Page'!$B$29","v":"Annual Performance Report 2021"},null,null,null,null,null,null,null,{"$f":"+'Cover Page'!$B$33","v":"Lakeside Energy from Waste Limited"}]
[]
["Emissions to Air (continously monitored)"]
[null,null,null,null,null,null,null,null,null,null,null,null,null,null,null,"Notes:"]
["Summary of monitoring undertaken, standards used and compliance",null,null,null,null,null,null,null,null,null,null,null,null,null,null,"Template may require adjustment for any bespoke monitoring requirements of permit"]
["A full QAL 2 was carried out on both lines and the standby analyser. New factors were entered for all parameters.",null,null,null,null,null,null,null,null,null,null,null,null,null,null,"Report to 2 decimal places, i.e. xx.xx%"]
[]
[]
[]
[]
["Results of emissions to air that are continuously monitored (maximum and average values for each line)"]
["Substance","Reference Period","Emission Limit Value","A1",null,"A2",null,"A3",null,"A4",null,"A5"]
[null,null,null,"Max.","Avg.","Max.","Avg.","Max.","Avg.","Max.","Avg.","Max.","Avg."]
["Oxides of nitrogen","Daily mean","200 mg/m3 ",200,186.5,199,186.7]
[null,"½ hourly mean","400 mg/m3 ",314,186.5,257,186.7]
["Particulates","Daily mean","10 mg/m3",8,1.333,1,0.42]
[null,"½ hourly mean","30 mg/m3 ",50,1.333,18,0.42]
["Total Organic Carbon ","Daily mean","10 mg/m3 ",1,0,1,0.42]
[null,"½ hourly mean","20 mg/m3 ",11,0,18,0.42]
["Hydrogen chloride ","Daily mean","10 mg/m3 ",10,5.42,10,4.33]
[null,"½ hourly mean","60 mg/m3 ",55,5.42,45,4.33]
["Sulphur dioxide","Daily mean","50 mg/m3 ",10,6,12,7.6]
[null,"½ hourly mean","200 mg/m3 ",120,6,27,7.6]
["Carbon monoxide ","Daily mean","50 mg/m3 ",19,3,15,3.8]
[null,"½ hourly mean *","100 mg/m3 *",986,3,677,3.8]
[null,"95%ile 10-min avg *","150 mg/m3 *"]
[" Ammonia","Daily mean","No limit set",1,0,0,0]
[]
["Comments :"]

{"sheet":"HCl","index":14,"n_rows":79,"n_cols":17,"rows_kept":79,"cut":false,"hidden":false,"merged":[[12,16,15,18],[51,9,63,9],[66,9,78,9],[4,9,4,14],[4,1,4,3],[4,4,4,6],[48,0,51,6],[47,0,47,6],[6,9,18,9],[21,9,33,9],[36,9,48,9],[3,16,7,18],[9,16,11,18]]}
[{"$f":"+'Cover Page'!$B$29","v":"Annual Performance Report 2021"},null,null,null,{"$f":"+'Cover Page'!$B$33","v":"Lakeside Energy from Waste Limited"}]
[]
["Monitoring of Hydrogen Chloride emissions",null,null,"Whole Installation",null,null,"See  Notes in Cell Q3",null,null,{"$f":"+A3","v":"Monitoring of Hydrogen Chloride emissions"},null,null,null,"Per Combustion Line",null,null,"Notes:"]
[null,null,null,null,null,null,null,null,null,null,null,null,null,null,null,null,"User to add logic to complete Whole installation, Table A5:G18. From the data in Per Combustion Line, Table J6:O79, subject to No. of lines installed"]
["mg/Nm3","1/2 Hourly Reference Periods",null,null,"Daily Reference Periods"]
[2021,"1/2 hourly HCl ELV","Monthly 1/2 hourly mean","Highest 1/2 hourly maximum","Daily HCl ELV","Monthly daily mean","Highest daily maximum",null,null,{"$f":"+A6","v":2021},"mg/Nm3","Monthly 1/2 hourly mean","Monthly 1/2 hourly maximum","Monthly daily mean","Monthly daily maximum"]
["Jan",60,{"$f":"(L7+L22)/2","v":4.4399999999999995},{"$f":"(M7+M22)/2","v":38.075000000000003},10,{"$f":"(N7+N22)/2","v":4.1500000000000004},{"$f":"(O7+O22)/2","v":5.54},null,null,"A1","Jan",4.74,19.149999999999999,4.75,5.78]
["Feb",60,{"$f":"(L8+L23)/2","v":6.67},14.61,10,{"$f":"(N8+N23)/2","v":6.67},8.7149999999999999,null,null,null,"Feb",6.29,9.2899999999999991,6.29,8.3699999999999992]
["Mar",60,{"$f":"(L9+L24)/2","v":7.4949999999999992},18.625,10,{"$f":"(N9+N24)/2","v":7.4950000000000001},8.875,null,null,null,"Mar",7.18,15.99,7.17,8.68,null,"Whole Installation table A5:G18:"]
["Apr",60,{"$f":"(L10+L25)/2","v":8.4749999999999996},21.085000000000001,10,{"$f":"(N10+N25)/2","v":8.4749999999999996},9.49,null,null,null,"Apr",8.6199999999999992,12.94,8.6199999999999992,9.51,null,"Mean: for 1/2 hourly and daily periods calculate mean of values across all operational combustion lines for the month"]
["May",60,{"$f":"(L11+L26)/2","v":7.3650000000000002},15.114999999999998,10,{"$f":"(N11+N26)/2","v":7.3599999999999994},8.9849999999999994,null,null,null,"May",8.08,16.739999999999998,8.09,9.5500000000000007]
["Jun",60,{"$f":"(L12+L27)/2","v":5.98},24.895,10,{"$f":"(N12+N27)/2","v":5.9649999999999999},7.9,null,null,null,"Jun",7.09,34.07,7.07,9.07]
["Jul",60,{"$f":"(L13+L28)/2","v":6.55},17.895,10,{"$f":"(N13+N28)/2","v":6.5549999999999997},8.67,null,null,null,"Jul",7.8,24.49,7.79,9.65,null,"Maximum: for 1/2 hourly and daily periods use the highest value across all operational combustion lines for the month"]
["Aug",60,{"$f":"(L14+L29)/2","v":6.625},19.615000000000002,10,{"$f":"(N14+N29)/2","v":6.46},7.665,null,null,null,"Aug",8.06,22.02,7.72,8.9]
["Sep",60,{"$f":"(L15+L30)/2","v":3.19},10.125,10,{"$f":"(N15+N30)/2","v":3.0150000000000001},3.6949999999999998,null,null,null,"Sep",3.56,5.43,3.56,4.43]
["Oct",60,{"$f":"(L16+L31)/2","v":4.18},8.19,10,{"$f":"(N16+N31)/2","v":4.18},5.1749999999999998,null,null,null,"Oct",4.95,10.76,4.95,6.42]
["Nov",60,{"$f":"(L17+L32)/2","v":4.625},26.349999999999998,10,{"$f":"(N17+N32)/2","v":4.625},6.2200000000000006,null,null,null,"Nov",5.58,38.94,5.58,7.58]
["Dec",60,{"$f":"(L18+L33)/2","v":4.7850000000000001},9.5150000000000006,10,{"$f":"(N18+N33)/2","v":4.8},7.26,null,null,null,"Dec",5.71,12.73,5.71,8.48]
[null,null,null,null,null,null,null,null,null,null,"Annual",{"$f":"AVERAGE(L7:L18)","v":6.4716666666666667},{"$f":"MAX(M7:M18)","v":38.94},{"$f":"AVERAGE(N7:N18)","v":6.4416666666666664},{"$f":"MAX(O7:O18)","v":9.65}]
[]
[null,null,null,null,null,null,null,null,null,{"$f":"+A6","v":2021},"mg/Nm3","Monthly 1/2 hourly mean","Monthly 1/2 hourly maximum","Monthly daily mean","Monthly daily maximum"]
[null,null,null,null,null,null,null,null,null,"A2","Jan",4.1399999999999997,57,3.55,5.3]
[null,null,null,null,null,null,null,null,null,null,"Feb",7.05,19.93,7.05,9.06]
[null,null,null,null,null,null,null,null,null,null,"Mar",7.81,21.26,7.82,9.07]
[null,null,null,null,null,null,null,null,null,null,"Apr",8.33,29.23,8.33,9.4700000000000006]
[null,null,null,null,null,null,null,null,null,null,"May",6.65,13.49,6.63,8.42]
[null,null,null,null,null,null,null,null,null,null,"Jun",4.87,15.72,4.8600000000000003,6.73]
[null,null,null,null,null,null,null,null,null,null,"Jul",5.3,11.3,5.32,7.69]
[null,null,null,null,null,null,null,null,null,null,"Aug",5.19,17.21,5.2,6.43]
[null,null,null,null,null,null,null,null,null,null,"Sep",2.82,14.82,2.4700000000000002,2.96]
[null,null,null,null,null,null,null,null,null,null,"Oct",3.41,5.62,3.41,3.93]
[null,null,null,null,null,null,null,null,null,null,"Nov",3.67,13.76,3.67,4.8600000000000003]
[null,null,null,null,null,null,null,null,null,null,"Dec",3.86,6.3,3.89,6.04]
[null,null,null,null,null,null,null,null,null,null,"Annual",{"$f":"AVERAGE(L22:L33)","v":5.2583333333333329},{"$f":"MAX(M22:M33)","v":57},{"$f":"AVERAGE(N22:N33)","v":5.1833333333333336},{"$f":"MAX(O22:O33)","v":9.4700000000000006}]
[]
[null,null,null,null,null,null,null,null,null,{"$f":"+A6","v":2021},"mg/Nm3","Monthly 1/2 hourly mean","Monthly 1/2 hourly maximum","Monthly daily mean","Monthly daily maximum"]
[null,null,null,null,null,null,null,null,null,"A3","Jan"]
[null,null,null,null,null,null,null,null,null,null,"Feb"]
[null,null,null,null,null,null,null,null,null,null,"Mar"]
[null,null,null,null,null,null,null,null,null,null,"Apr"]
[null,null,null,null,null,null,null,null,null,null,"May"]
[null,null,null,null,null,null,null,null,null,null,"Jun"]
[null,null,null,null,null,null,null,null,null,null,"Jul"]
[null,null,null,null,null,null,null,null,null,null,"Aug"]
[null,null,null,null,null,null,null,null,null,null,"Sep"]
[null,null,null,null,null,null,null,null,null,null,"Oct"]
[null,null,null,null,null,null,null,null,null,null,"Nov"]
["Comments :",null,null,null,null,null,null,null,null,null,"Dec"]
[null,null,null,null,null,null,null,null,null,null,"Annual",{"$f":"AVERAGE(L37:L48)","v":{"$error":"#DIV/0!"}},{"$f":"MAX(M37:M48)","v":0},{"$f":"AVERAGE(N37:N48)","v":{"$error":"#DIV/0!"}},{"$f":"MAX(O37:O48)","v":0}]
[]
[null,null,null,null,null,null,null,null,null,{"$f":"+A6","v":2021},"mg/Nm3","Monthly 1/2 hourly mean","Monthly 1/2 hourly maximum","Monthly daily mean","Monthly daily maximum"]
[null,null,null,null,null,null,null,null,null,"A4","Jan"]
[null,null,null,null,null,null,null,null,null,null,"Feb"]
[null,null,null,null,null,null,null,null,null,null,"Mar"]
[null,null,null,null,null,null,null,null,null,null,"Apr"]
[null,null,null,null,null,null,null,null,null,null,"May"]
[null,null,null,null,null,null,null,null,null,null,"Jun"]
[null,null,null,null,null,null,null,null,null,null,"Jul"]
[null,null,null,null,null,null,null,null,null,null,"Aug"]
[null,null,null,null,null,null,null,null,null,null,"Sep"]
[null,null,null,null,null,null,null,null,null,null,"Oct"]
[null,null,null,null,null,null,null,null,null,null,"Nov"]
[null,null,null,null,null,null,null,null,null,null,"Dec"]
[null,null,null,null,null,null,null,null,null,null,"Annual",{"$f":"AVERAGE(L52:L63)","v":{"$error":"#DIV/0!"}},{"$f":"MAX(M52:M63)","v":0},{"$f":"AVERAGE(N52:N63)","v":{"$error":"#DIV/0!"}},{"$f":"MAX(O52:O63)","v":0}]
[]
[null,null,null,null,null,null,null,null,null,{"$f":"+A6","v":2021},"mg/Nm3","Monthly 1/2 hourly mean","Monthly 1/2 hourly maximum","Monthly daily mean","Monthly daily maximum"]
[null,null,null,null,null,null,null,null,null,"A5","Jan"]
[null,null,null,null,null,null,null,null,null,null,"Feb"]
[null,null,null,null,null,null,null,null,null,null,"Mar"]
[null,null,null,null,null,null,null,null,null,null,"Apr"]
[null,null,null,null,null,null,null,null,null,null,"May"]
[null,null,null,null,null,null,null,null,null,null,"Jun"]
[null,null,null,null,null,null,null,null,null,null,"Jul"]
[null,null,null,null,null,null,null,null,null,null,"Aug"]
[null,null,null,null,null,null,null,null,null,null,"Sep"]
[null,null,null,null,null,null,null,null,null,null,"Oct"]
[null,null,null,null,null,null,null,null,null,null,"Nov"]
[null,null,null,null,null,null,null,null,null,null,"Dec"]
[null,null,null,null,null,null,null,null,null,null,"Annual",{"$f":"AVERAGE(L67:L78)","v":{"$error":"#DIV/0!"}},{"$f":"MAX(M67:M78)","v":0},{"$f":"AVERAGE(N67:N78)","v":{"$error":"#DIV/0!"}},{"$f":"MAX(O67:O78)","v":0}]

{"sheet":"SO2","index":15,"n_rows":79,"n_cols":17,"rows_kept":79,"cut":false,"hidden":false,"merged":[[3,16,7,18],[9,16,11,18],[12,16,15,18],[66,9,78,9],[4,1,4,3],[4,4,4,6],[4,9,4,14],[6,9,18,9],[21,9,33,9],[36,9,48,9],[47,0,47,6],[48,0,51,6],[51,9,63,9]]}
[{"$f":"+'Cover Page'!$B$29","v":"Annual Performance Report 2021"},null,null,null,{"$f":"+'Cover Page'!$B$33","v":"Lakeside Energy from Waste Limited"}]
[]
["Monitoring of Sulphur dioxide emissions",null,null,"Whole Installation",null,null,"See  Notes in Cell Q3",null,null,{"$f":"+A3","v":"Monitoring of Sulphur dioxide emissions"},null,null,null,"Per Combustion Line",null,null,"Notes:"]
[null,null,null,null,null,null,null,null,null,null,null,null,null,null,null,null,"User to add logic to complete Whole installation, Table A5:G18. From the data in Per Combustion Line, Table J6:O79, subject to No. of lines installed"]
["mg/Nm3","1/2 Hourly Reference Periods",null,null,"Daily Reference Periods"]
[2021,"1/2 hourly SO2 ELV","Monthly 1/2 hourly mean","Highest 1/2 hourly maximum","Daily SO2 ELV","Monthly daily mean","Highest daily maximum",null,null,{"$f":"+A6","v":2021},"mg/Nm3","Monthly 1/2 hourly mean","Monthly 1/2 hourly maximum","Monthly daily mean","Monthly daily maximum"]
["Jan",200,{"$f":"(L7+L22)/2","v":8.17},{"$f":"(M7+M22)/2","v":23.965},50,{"$f":"(N7+N22)/2","v":7.75},{"$f":"(O7+O22)/2","v":8.65},null,null,"A1","Jan",6.96,15.93,6.96,7.88]
["Feb",200,{"$f":"(L8+L23)/2","v":8.1150000000000002},32.74,50,{"$f":"(N8+N23)/2","v":8.1150000000000002},12.574999999999999,null,null,null,"Feb",7.8,22.52,7.8,14.28]
["Mar",200,{"$f":"(L9+L24)/2","v":6.27},30.98,50,{"$f":"(N9+N24)/2","v":6.27},8.5599999999999987,null,null,null,"Mar",5.67,44.61,5.67,8.51,null,"Whole Installation table A5:G18:"]
["Apr",200,{"$f":"(L10+L25)/2","v":5.4450000000000003},19.899999999999999,50,{"$f":"(N10+N25)/2","v":5.4450000000000003},8.0399999999999991,null,null,null,"Apr",5.03,11.79,5.03,6.25,null,"Mean: for 1/2 hourly and daily periods calculate mean of values across all operational combustion lines for the month"]
["May",200,{"$f":"(L11+L26)/2","v":7.51},17.979999999999997,50,{"$f":"(N11+N26)/2","v":7.5049999999999999},8.379999999999999,null,null,null,"May",5.34,17.38,5.32,6.43]
["Jun",200,{"$f":"(L12+L27)/2","v":7.68},29.285,50,{"$f":"(N12+N27)/2","v":7.5150000000000006},10.16,null,null,null,"Jun",5.77,36.5,5.45,9.0399999999999991]
["Jul",200,{"$f":"(L13+L28)/2","v":7.125},24.535,50,{"$f":"(N13+N28)/2","v":7.1},8.4600000000000009,null,null,null,"Jul",5.51,32,5.47,6.77,null,"Maximum: for 1/2 hourly and daily periods use the highest value across all operational combustion lines for the month"]
["Aug",200,{"$f":"(L14+L29)/2","v":7.54},25.43,50,{"$f":"(N14+N29)/2","v":7.4},9.3550000000000004,null,null,null,"Aug",5.27,19.170000000000002,4.99,5.75]
["Sep",200,{"$f":"(L15+L30)/2","v":8.15},110.905,50,{"$f":"(N15+N30)/2","v":8.07},15.475000000000001,null,null,null,"Sep",4.82,150.69999999999999,4.83,8.24]
["Oct",200,{"$f":"(L16+L31)/2","v":7.55},16.920000000000002,50,{"$f":"(N16+N31)/2","v":7.55},8.36,null,null,null,"Oct",5.15,18.87,5.15,5.89]
["Nov",200,{"$f":"(L17+L32)/2","v":7.2149999999999999},23.995000000000001,50,{"$f":"(N17+N32)/2","v":7.2149999999999999},10.205,null,null,null,"Nov",5.68,19.3,5.68,9.4700000000000006]
["Dec",200,{"$f":"(L18+L33)/2","v":7.1150000000000002},16.545000000000002,50,{"$f":"(N18+N33)/2","v":7.1050000000000004},9.01,null,null,null,"Dec",5.55,11.79,5.55,7.4]
[null,null,null,null,null,null,null,null,null,null,"Annual",{"$f":"AVERAGE(L7:L18)","v":5.7124999999999995},{"$f":"MAX(M7:M18)","v":150.69999999999999},{"$f":"AVERAGE(N7:N18)","v":5.6583333333333341},{"$f":"MAX(O7:O18)","v":14.28}]
[]
[null,null,null,null,null,null,null,null,null,{"$f":"+A6","v":2021},"mg/Nm3","Monthly 1/2 hourly mean","Monthly 1/2 hourly maximum","Monthly daily mean","Monthly daily maximum"]
[null,null,null,null,null,null,null,null,null,"A2","Jan",9.3800000000000008,32,8.5399999999999991,9.42]
[null,null,null,null,null,null,null,null,null,null,"Feb",8.43,42.96,8.43,10.87]
[null,null,null,null,null,null,null,null,null,null,"Mar",6.87,17.350000000000001,6.87,8.61]
[null,null,null,null,null,null,null,null,null,null,"Apr",5.86,28.01,5.86,9.83]
[null,null,null,null,null,null,null,null,null,null,"May",9.68,18.579999999999998,9.69,10.33]
[null,null,null,null,null,null,null,null,null,null,"Jun",9.59,22.07,9.58,11.28]
[null,null,null,null,null,null,null,null,null,null,"Jul",8.74,17.07,8.73,10.15]
[null,null,null,null,null,null,null,null,null,null,"Aug",9.81,31.69,9.81,12.96]
[null,null,null,null,null,null,null,null,null,null,"Sep",11.48,71.11,11.31,22.71]
[null,null,null,null,null,null,null,null,null,null,"Oct",9.9499999999999993,14.97,9.9499999999999993,10.83]
[null,null,null,null,null,null,null,null,null,null,"Nov",8.75,28.69,8.75,10.94]
[null,null,null,null,null,null,null,null,null,null,"Dec",8.68,21.3,8.66,10.62]
[null,null,null,null,null,null,null,null,null,null,"Annual",{"$f":"AVERAGE(L22:L33)","v":8.9350000000000005},{"$f":"MAX(M22:M33)","v":71.11},{"$f":"AVERAGE(N22:N33)","v":8.8483333333333345},{"$f":"MAX(O22:O33)","v":22.71}]
[]
[null,null,null,null,null,null,null,null,null,{"$f":"+A6","v":2021},"mg/Nm3","Monthly 1/2 hourly mean","Monthly 1/2 hourly maximum","Monthly daily mean","Monthly daily maximum"]
[null,null,null,null,null,null,null,null,null,"A3","Jan"]
[null,null,null,null,null,null,null,null,null,null,"Feb"]
[null,null,null,null,null,null,null,null,null,null,"Mar"]
[null,null,null,null,null,null,null,null,null,null,"Apr"]
[null,null,null,null,null,null,null,null,null,null,"May"]
[null,null,null,null,null,null,null,null,null,null,"Jun"]
[null,null,null,null,null,null,null,null,null,null,"Jul"]
[null,null,null,null,null,null,null,null,null,null,"Aug"]
[null,null,null,null,null,null,null,null,null,null,"Sep"]
[null,null,null,null,null,null,null,null,null,null,"Oct"]
[null,null,null,null,null,null,null,null,null,null,"Nov"]
["Comments :",null,null,null,null,null,null,null,null,null,"Dec"]
[null,null,null,null,null,null,null,null,null,null,"Annual",{"$f":"AVERAGE(L37:L48)","v":{"$error":"#DIV/0!"}},{"$f":"MAX(M37:M48)","v":0},{"$f":"AVERAGE(N37:N48)","v":{"$error":"#DIV/0!"}},{"$f":"MAX(O37:O48)","v":0}]
[]
[null,null,null,null,null,null,null,null,null,{"$f":"+A6","v":2021},"mg/Nm3","Monthly 1/2 hourly mean","Monthly 1/2 hourly maximum","Monthly daily mean","Monthly daily maximum"]
[null,null,null,null,null,null,null,null,null,"A4","Jan"]
[null,null,null,null,null,null,null,null,null,null,"Feb"]
[null,null,null,null,null,null,null,null,null,null,"Mar"]
[null,null,null,null,null,null,null,null,null,null,"Apr"]
[null,null,null,null,null,null,null,null,null,null,"May"]
[null,null,null,null,null,null,null,null,null,null,"Jun"]
[null,null,null,null,null,null,null,null,null,null,"Jul"]
[null,null,null,null,null,null,null,null,null,null,"Aug"]
[null,null,null,null,null,null,null,null,null,null,"Sep"]
[null,null,null,null,null,null,null,null,null,null,"Oct"]
[null,null,null,null,null,null,null,null,null,null,"Nov"]
[null,null,null,null,null,null,null,null,null,null,"Dec"]
[null,null,null,null,null,null,null,null,null,null,"Annual",{"$f":"AVERAGE(L52:L63)","v":{"$error":"#DIV/0!"}},{"$f":"MAX(M52:M63)","v":0},{"$f":"AVERAGE(N52:N63)","v":{"$error":"#DIV/0!"}},{"$f":"MAX(O52:O63)","v":0}]
[]
[null,null,null,null,null,null,null,null,null,{"$f":"+A6","v":2021},"mg/Nm3","Monthly 1/2 hourly mean","Monthly 1/2 hourly maximum","Monthly daily mean","Monthly daily maximum"]
[null,null,null,null,null,null,null,null,null,"A5","Jan"]
[null,null,null,null,null,null,null,null,null,null,"Feb"]
[null,null,null,null,null,null,null,null,null,null,"Mar"]
[null,null,null,null,null,null,null,null,null,null,"Apr"]
[null,null,null,null,null,null,null,null,null,null,"May"]
[null,null,null,null,null,null,null,null,null,null,"Jun"]
[null,null,null,null,null,null,null,null,null,null,"Jul"]
[null,null,null,null,null,null,null,null,null,null,"Aug"]
[null,null,null,null,null,null,null,null,null,null,"Sep"]
[null,null,null,null,null,null,null,null,null,null,"Oct"]
[null,null,null,null,null,null,null,null,null,null,"Nov"]
[null,null,null,null,null,null,null,null,null,null,"Dec"]
[null,null,null,null,null,null,null,null,null,null,"Annual",{"$f":"AVERAGE(L67:L78)","v":{"$error":"#DIV/0!"}},{"$f":"MAX(M67:M78)","v":0},{"$f":"AVERAGE(N67:N78)","v":{"$error":"#DIV/0!"}},{"$f":"MAX(O67:O78)","v":0}]

{"sheet":"NOx","index":16,"n_rows":79,"n_cols":17,"rows_kept":79,"cut":false,"hidden":false,"merged":[[3,16,7,18],[9,16,11,18],[12,16,15,18],[66,9,78,9],[4,1,4,3],[4,4,4,6],[4,9,4,14],[6,9,18,9],[21,9,33,9],[36,9,48,9],[47,0,47,6],[48,0,51,6],[51,9,63,9]]}
[{"$f":"+'Cover Page'!$B$29","v":"Annual Performance Report 2021"},null,null,null,{"$f":"+'Cover Page'!$B$33","v":"Lakeside Energy from Waste Limited"}]
[]
["Monitoring of Oxides of Nitrogen emissions",null,null,"Whole Installation",null,null,"See  Notes in Cell Q3",null,null,{"$f":"+A3","v":"Monitoring of Oxides of Nitrogen emissions"},null,null,null,"Per Combustion Line",null,null,"Notes:"]
[null,null,null,null,null,null,null,null,null,null,null,null,null,null,null,null,"User to add logic to complete Whole installation, Table A5:G18. From the data in Per Combustion Line, Table J6:O79, subject to No. of lines installed"]
["mg/Nm3","1/2 Hourly Reference Periods",null,null,"Daily Reference Periods"]
[2021,"1/2 hourly NOx ELV","Monthly 1/2 hourly mean","Highest 1/2 hourly maximum","Daily NOx ELV","Monthly daily mean","Highest daily maximum",null,null,{"$f":"+A6","v":2021},"mg/Nm3","Monthly 1/2 hourly mean","Monthly 1/2 hourly maximum","Monthly daily mean","Monthly daily maximum"]
["Jan",400,{"$f":"(L7+L22)/2","v":194.48500000000001},{"$f":"(M7+M22)/2","v":253.42},200,{"$f":"(N7+N22)/2","v":193.53},{"$f":"(O7+O22)/2","v":199.44},null,null,"A1","Jan",193.69,262.83999999999997,193.68,200.06]
["Feb",400,{"$f":"(L8+L23)/2","v":190.98},270.22000000000003,200,{"$f":"(N8+N23)/2","v":190.97499999999999},197.43,null,null,null,"Feb",191.89,282.27999999999997,191.88,197.89]
["Mar",400,{"$f":"(L9+L24)/2","v":187.30500000000001},247.66499999999999,200,{"$f":"(N9+N24)/2","v":187.29500000000002},196.26999999999998,null,null,null,"Mar",192.01,242.6,192,196.64,null,"Whole Installation table A5:G18:"]
["Apr",400,{"$f":"(L10+L25)/2","v":184.315},246.05500000000001,200,{"$f":"(N10+N25)/2","v":184.315},192.45,null,null,null,"Apr",192.87,248.68,192.88,198.32,null,"Mean: for 1/2 hourly and daily periods calculate mean of values across all operational combustion lines for the month"]
["May",400,{"$f":"(L11+L26)/2","v":187.995},266.15499999999997,200,{"$f":"(N11+N26)/2","v":187.86},195.625,null,null,null,"May",191.16,260.67,191.13,197.65]
["Jun",400,{"$f":"(L12+L27)/2","v":187.32499999999999},273.16500000000002,200,{"$f":"(N12+N27)/2","v":187.345},195.81,null,null,null,"Jun",189.74,295.91000000000003,189.52,196.44]
["Jul",400,{"$f":"(L13+L28)/2","v":179.57499999999999},272.55500000000001,200,{"$f":"(N13+N28)/2","v":179.80500000000001},193.45,null,null,null,"Jul",178.34,275.54000000000002,178.88,198.97,null,"Maximum: for 1/2 hourly and daily periods use the highest value across all operational combustion lines for the month"]
["Aug",400,{"$f":"(L14+L29)/2","v":177.935},276.77499999999998,200,{"$f":"(N14+N29)/2","v":179.76499999999999},195.35,null,null,null,"Aug",177.38,262.77999999999997,181.04,193.42]
["Sep",400,{"$f":"(L15+L30)/2","v":185.38},313.58499999999998,200,{"$f":"(N15+N30)/2","v":190.63499999999999},197.14499999999998,null,null,null,"Sep",191.97,349.71,192.02,197.97]
["Oct",400,{"$f":"(L16+L31)/2","v":189.215},284.32,200,{"$f":"(N16+N31)/2","v":189.215},197.065,null,null,null,"Oct",191.21,307.33,191.21,197.12]
["Nov",400,{"$f":"(L17+L32)/2","v":179.5},269.72000000000003,200,{"$f":"(N17+N32)/2","v":179.5},196.07,null,null,null,"Nov",190.65,276.14,190.65,198.61]
["Dec",400,{"$f":"(L18+L33)/2","v":176.22499999999999},262.47500000000002,200,{"$f":"(N18+N33)/2","v":176.25},194.27,null,null,null,"Dec",188.67,265.85000000000002,188.66,198.93]
[null,null,null,null,null,null,null,null,null,null,"Annual",{"$f":"AVERAGE(L7:L18)","v":189.13166666666666},{"$f":"MAX(M7:M18)","v":349.71},{"$f":"AVERAGE(N7:N18)","v":189.46249999999998},{"$f":"MAX(O7:O18)","v":200.06}]
[]
[null,null,null,null,null,null,null,null,null,{"$f":"+A6","v":2021},"mg/Nm3","Monthly 1/2 hourly mean","Monthly 1/2 hourly maximum","Monthly daily mean","Monthly daily maximum"]
[null,null,null,null,null,null,null,null,null,"A2","Jan",195.28,244,193.38,198.82]
[null,null,null,null,null,null,null,null,null,null,"Feb",190.07,258.16000000000003,190.07,196.97]
[null,null,null,null,null,null,null,null,null,null,"Mar",182.6,252.73,182.59,195.9]
[null,null,null,null,null,null,null,null,null,null,"Apr",175.76,243.43,175.75,186.58]
[null,null,null,null,null,null,null,null,null,null,"May",184.83,271.64,184.59,193.6]
[null,null,null,null,null,null,null,null,null,null,"Jun",184.91,250.42,185.17,195.18]
[null,null,null,null,null,null,null,null,null,null,"Jul",180.81,269.57,180.73,187.93]
[null,null,null,null,null,null,null,null,null,null,"Aug",178.49,290.77,178.49,197.28]
[null,null,null,null,null,null,null,null,null,null,"Sep",178.79,277.45999999999998,189.25,196.32]
[null,null,null,null,null,null,null,null,null,null,"Oct",187.22,261.31,187.22,197.01]
[null,null,null,null,null,null,null,null,null,null,"Nov",168.35,263.3,168.35,193.53]
[null,null,null,null,null,null,null,null,null,null,"Dec",163.78,259.10000000000002,163.84,189.61]
[null,null,null,null,null,null,null,null,null,null,"Annual",{"$f":"AVERAGE(L22:L33)","v":180.9075},{"$f":"MAX(M22:M33)","v":290.77},{"$f":"AVERAGE(N22:N33)","v":181.61916666666664},{"$f":"MAX(O22:O33)","v":198.82}]
[]
[null,null,null,null,null,null,null,null,null,{"$f":"+A6","v":2021},"mg/Nm3","Monthly 1/2 hourly mean","Monthly 1/2 hourly maximum","Monthly daily mean","Monthly daily maximum"]
[null,null,null,null,null,null,null,null,null,"A3","Jan"]
[null,null,null,null,null,null,null,null,null,null,"Feb"]
[null,null,null,null,null,null,null,null,null,null,"Mar"]
[null,null,null,null,null,null,null,null,null,null,"Apr"]
[null,null,null,null,null,null,null,null,null,null,"May"]
[null,null,null,null,null,null,null,null,null,null,"Jun"]
[null,null,null,null,null,null,null,null,null,null,"Jul"]
[null,null,null,null,null,null,null,null,null,null,"Aug"]
[null,null,null,null,null,null,null,null,null,null,"Sep"]
[null,null,null,null,null,null,null,null,null,null,"Oct"]
[null,null,null,null,null,null,null,null,null,null,"Nov"]
["Comments :",null,null,null,null,null,null,null,null,null,"Dec"]
[null,null,null,null,null,null,null,null,null,null,"Annual",{"$f":"AVERAGE(L37:L48)","v":{"$error":"#DIV/0!"}},{"$f":"MAX(M37:M48)","v":0},{"$f":"AVERAGE(N37:N48)","v":{"$error":"#DIV/0!"}},{"$f":"MAX(O37:O48)","v":0}]
[]
[null,null,null,null,null,null,null,null,null,{"$f":"+A6","v":2021},"mg/Nm3","Monthly 1/2 hourly mean","Monthly 1/2 hourly maximum","Monthly daily mean","Monthly daily maximum"]
[null,null,null,null,null,null,null,null,null,"A4","Jan"]
[null,null,null,null,null,null,null,null,null,null,"Feb"]
[null,null,null,null,null,null,null,null,null,null,"Mar"]
[null,null,null,null,null,null,null,null,null,null,"Apr"]
[null,null,null,null,null,null,null,null,null,null,"May"]
[null,null,null,null,null,null,null,null,null,null,"Jun"]
[null,null,null,null,null,null,null,null,null,null,"Jul"]
[null,null,null,null,null,null,null,null,null,null,"Aug"]
[null,null,null,null,null,null,null,null,null,null,"Sep"]
[null,null,null,null,null,null,null,null,null,null,"Oct"]
[null,null,null,null,null,null,null,null,null,null,"Nov"]
[null,null,null,null,null,null,null,null,null,null,"Dec"]
[null,null,null,null,null,null,null,null,null,null,"Annual",{"$f":"AVERAGE(L52:L63)","v":{"$error":"#DIV/0!"}},{"$f":"MAX(M52:M63)","v":0},{"$f":"AVERAGE(N52:N63)","v":{"$error":"#DIV/0!"}},{"$f":"MAX(O52:O63)","v":0}]
[]
[null,null,null,null,null,null,null,null,null,{"$f":"+A6","v":2021},"mg/Nm3","Monthly 1/2 hourly mean","Monthly 1/2 hourly maximum","Monthly daily mean","Monthly daily maximum"]
[null,null,null,null,null,null,null,null,null,"A5","Jan"]
[null,null,null,null,null,null,null,null,null,null,"Feb"]
[null,null,null,null,null,null,null,null,null,null,"Mar"]
[null,null,null,null,null,null,null,null,null,null,"Apr"]
[null,null,null,null,null,null,null,null,null,null,"May"]
[null,null,null,null,null,null,null,null,null,null,"Jun"]
[null,null,null,null,null,null,null,null,null,null,"Jul"]
[null,null,null,null,null,null,null,null,null,null,"Aug"]
[null,null,null,null,null,null,null,null,null,null,"Sep"]
[null,null,null,null,null,null,null,null,null,null,"Oct"]
[null,null,null,null,null,null,null,null,null,null,"Nov"]
[null,null,null,null,null,null,null,null,null,null,"Dec"]
[null,null,null,null,null,null,null,null,null,null,"Annual",{"$f":"AVERAGE(L67:L78)","v":{"$error":"#DIV/0!"}},{"$f":"MAX(M67:M78)","v":0},{"$f":"AVERAGE(N67:N78)","v":{"$error":"#DIV/0!"}},{"$f":"MAX(O67:O78)","v":0}]

{"sheet":"TOC","index":17,"n_rows":79,"n_cols":17,"rows_kept":79,"cut":false,"hidden":false,"merged":[[3,16,7,18],[9,16,11,18],[12,16,15,18],[66,9,78,9],[4,1,4,3],[4,4,4,6],[4,9,4,14],[6,9,18,9],[21,9,33,9],[36,9,48,9],[47,0,47,6],[48,0,51,6],[51,9,63,9]]}
[{"$f":"+'Cover Page'!$B$29","v":"Annual Performance Report 2021"},null,null,null,{"$f":"+'Cover Page'!$B$33","v":"Lakeside Energy from Waste Limited"}]
[]
["Monitoring of Total organic carbon emissions",null,null,"Whole Installation",null,null,"See  Notes in Cell Q3",null,null,{"$f":"+A3","v":"Monitoring of Total organic carbon emissions"},null,null,null,"Per Combustion Line",null,null,"Notes:"]
[null,null,null,null,null,null,null,null,null,null,null,null,null,null,null,null,"User to add logic to complete Whole installation, Table A5:G18. From the data in Per Combustion Line, Table J6:O79, subject to No. of lines installed"]
["mg/Nm3","1/2 Hourly Reference Periods",null,null,"Daily Reference Periods"]
[2021,"1/2 hourly TOC ELV","Monthly 1/2 hourly mean","Highest 1/2 hourly maximum","Daily TOC ELV","Monthly daily mean","Highest daily maximum",null,null,{"$f":"+A6","v":2021},"mg/Nm3","Monthly 1/2 hourly mean","Monthly 1/2 hourly maximum","Monthly daily mean","Monthly daily maximum"]
["Jan",20,{"$f":"+(L7+L22)/2","v":1.405},{"$f":"+(M7+M22)/2","v":6.4649999999999999},10,{"$f":"(N7+N22)/2","v":0.32500000000000001},{"$f":"(O7+O22)/2","v":0.48},null,null,"A1","Jan",0.21,2.93,0.21,0.37]
["Feb",20,{"$f":"+(L8+L23)/2","v":0.33},4.5549999999999997,10,{"$f":"(N8+N23)/2","v":0.33},0.46499999999999997,null,null,null,"Feb",0.22,5.37,0.22,0.34]
["Mar",20,{"$f":"+(L9+L24)/2","v":0.17500000000000002},2.7800000000000002,10,{"$f":"(N9+N24)/2","v":0.17},0.435,null,null,null,"Mar",0.02,2,0.01,0.37,null,"Whole Installation table A5:G18:"]
["Apr",20,{"$f":"+(L10+L25)/2","v":0.23499999999999999},3.99,10,{"$f":"(N10+N25)/2","v":0.23499999999999999},0.32999999999999996,null,null,null,"Apr",0.36,3.58,0.36,0.42,null,"Mean: for 1/2 hourly and daily periods calculate mean of values across all operational combustion lines for the month"]
["May",20,{"$f":"+(L11+L26)/2","v":0.26500000000000001},4.875,10,{"$f":"(N11+N26)/2","v":0.27},0.39500000000000002,null,null,null,"May",0.32,4.43,0.33,0.46]
["Jun",20,{"$f":"+(L12+L27)/2","v":0.105},14.355,10,{"$f":"(N12+N27)/2","v":0.06},0.29500000000000004,null,null,null,"Jun",0.21,17,0.12,0.34]
["Jul",20,{"$f":"+(L13+L28)/2","v":0},2.915,10,{"$f":"(N13+N28)/2","v":0.105},0.28999999999999998,null,null,null,"Jul",0,3.73,0,0.28999999999999998,null,"Maximum: for 1/2 hourly and daily periods use the highest value across all operational combustion lines for the month"]
["Aug",20,{"$f":"+(L14+L29)/2","v":0.23},4.96,10,{"$f":"(N14+N29)/2","v":0.21500000000000002},0.35,null,null,null,"Aug",0.23,4.3,0.2,0.27]
["Sep",20,{"$f":"+(L15+L30)/2","v":0.52},7.41,10,{"$f":"(N15+N30)/2","v":0.19},0.43499999999999994,null,null,null,"Sep",0.19,3.82,0.18,0.3]
["Oct",20,{"$f":"+(L16+L31)/2","v":0.19},3.5700000000000003,10,{"$f":"(N16+N31)/2","v":0.19},0.29000000000000004,null,null,null,"Oct",0.18,3.48,0.18,0.31]
["Nov",20,{"$f":"+(L17+L32)/2","v":0.23499999999999999},2.76,10,{"$f":"(N17+N32)/2","v":0.23499999999999999},0.39,null,null,null,"Nov",0.26,2.33,0.26,0.43]
["Dec",20,{"$f":"+(L18+L33)/2","v":0.14500000000000002},6.1749999999999998,10,{"$f":"(N18+N33)/2","v":0.19500000000000001},0.32999999999999996,null,null,null,"Dec",0.27,3.85,0.37,0.37]
[null,null,null,null,null,null,null,null,null,null,"Annual",{"$f":"AVERAGE(L7:L18)","v":0.20583333333333334},{"$f":"MAX(M7:M18)","v":17},{"$f":"AVERAGE(N7:N18)","v":0.20333333333333334},{"$f":"MAX(O7:O18)","v":0.46}]
[]
[null,null,null,null,null,null,null,null,null,{"$f":"+A6","v":2021},"mg/Nm3","Monthly 1/2 hourly mean","Monthly 1/2 hourly maximum","Monthly daily mean","Monthly daily maximum"]
[null,null,null,null,null,null,null,null,null,"A2","Jan",2.6,10,0.44,0.59]
[null,null,null,null,null,null,null,null,null,null,"Feb",0.44,3.74,0.44,0.59]
[null,null,null,null,null,null,null,null,null,null,"Mar",0.33,3.56,0.33,0.5]
[null,null,null,null,null,null,null,null,null,null,"Apr",0.11,4.4000000000000004,0.11,0.24]
[null,null,null,null,null,null,null,null,null,null,"May",0.21,5.32,0.21,0.33]
[null,null,null,null,null,null,null,null,null,null,"Jun",0,11.71,0,0.25]
[null,null,null,null,null,null,null,null,null,null,"Jul",0,2.1,0.21,0.28999999999999998]
[null,null,null,null,null,null,null,null,null,null,"Aug",0.23,5.62,0.23,0.43]
[null,null,null,null,null,null,null,null,null,null,"Sep",0.85,11,0.2,0.56999999999999995]
[null,null,null,null,null,null,null,null,null,null,"Oct",0.2,3.66,0.2,0.27]
[null,null,null,null,null,null,null,null,null,null,"Nov",0.21,3.19,0.21,0.35]
[null,null,null,null,null,null,null,null,null,null,"Dec",0.02,8.5,0.02,0.28999999999999998]
[null,null,null,null,null,null,null,null,null,null,"Annual",{"$f":"AVERAGE(L22:L33)","v":0.43333333333333329},{"$f":"MAX(M22:M33)","v":11.71},{"$f":"AVERAGE(N22:N33)","v":0.21666666666666667},{"$f":"MAX(O22:O33)","v":0.59}]
[]
[null,null,null,null,null,null,null,null,null,{"$f":"+A6","v":2021},"mg/Nm3","Monthly 1/2 hourly mean","Monthly 1/2 hourly maximum","Monthly daily mean","Monthly daily maximum"]
[null,null,null,null,null,null,null,null,null,"A3","Jan"]
[null,null,null,null,null,null,null,null,null,null,"Feb"]
[null,null,null,null,null,null,null,null,null,null,"Mar"]
[null,null,null,null,null,null,null,null,null,null,"Apr"]
[null,null,null,null,null,null,null,null,null,null,"May"]
[null,null,null,null,null,null,null,null,null,null,"Jun"]
[null,null,null,null,null,null,null,null,null,null,"Jul"]
[null,null,null,null,null,null,null,null,null,null,"Aug"]
[null,null,null,null,null,null,null,null,null,null,"Sep"]
[null,null,null,null,null,null,null,null,null,null,"Oct"]
[null,null,null,null,null,null,null,null,null,null,"Nov"]
["Comments :",null,null,null,null,null,null,null,null,null,"Dec"]
[null,null,null,null,null,null,null,null,null,null,"Annual",{"$f":"AVERAGE(L37:L48)","v":{"$error":"#DIV/0!"}},{"$f":"MAX(M37:M48)","v":0},{"$f":"AVERAGE(N37:N48)","v":{"$error":"#DIV/0!"}},{"$f":"MAX(O37:O48)","v":0}]
[]
[null,null,null,null,null,null,null,null,null,{"$f":"+A6","v":2021},"mg/Nm3","Monthly 1/2 hourly mean","Monthly 1/2 hourly maximum","Monthly daily mean","Monthly daily maximum"]
[null,null,null,null,null,null,null,null,null,"A4","Jan"]
[null,null,null,null,null,null,null,null,null,null,"Feb"]
[null,null,null,null,null,null,null,null,null,null,"Mar"]
[null,null,null,null,null,null,null,null,null,null,"Apr"]
[null,null,null,null,null,null,null,null,null,null,"May"]
[null,null,null,null,null,null,null,null,null,null,"Jun"]
[null,null,null,null,null,null,null,null,null,null,"Jul"]
[null,null,null,null,null,null,null,null,null,null,"Aug"]
[null,null,null,null,null,null,null,null,null,null,"Sep"]
[null,null,null,null,null,null,null,null,null,null,"Oct"]
[null,null,null,null,null,null,null,null,null,null,"Nov"]
[null,null,null,null,null,null,null,null,null,null,"Dec"]
[null,null,null,null,null,null,null,null,null,null,"Annual",{"$f":"AVERAGE(L52:L63)","v":{"$error":"#DIV/0!"}},{"$f":"MAX(M52:M63)","v":0},{"$f":"AVERAGE(N52:N63)","v":{"$error":"#DIV/0!"}},{"$f":"MAX(O52:O63)","v":0}]
[]
[null,null,null,null,null,null,null,null,null,{"$f":"+A6","v":2021},"mg/Nm3","Monthly 1/2 hourly mean","Monthly 1/2 hourly maximum","Monthly daily mean","Monthly daily maximum"]
[null,null,null,null,null,null,null,null,null,"A5","Jan"]
[null,null,null,null,null,null,null,null,null,null,"Feb"]
[null,null,null,null,null,null,null,null,null,null,"Mar"]
[null,null,null,null,null,null,null,null,null,null,"Apr"]
[null,null,null,null,null,null,null,null,null,null,"May"]
[null,null,null,null,null,null,null,null,null,null,"Jun"]
[null,null,null,null,null,null,null,null,null,null,"Jul"]
[null,null,null,null,null,null,null,null,null,null,"Aug"]
[null,null,null,null,null,null,null,null,null,null,"Sep"]
[null,null,null,null,null,null,null,null,null,null,"Oct"]
[null,null,null,null,null,null,null,null,null,null,"Nov"]
[null,null,null,null,null,null,null,null,null,null,"Dec"]
[null,null,null,null,null,null,null,null,null,null,"Annual",{"$f":"AVERAGE(L67:L78)","v":{"$error":"#DIV/0!"}},{"$f":"MAX(M67:M78)","v":0},{"$f":"AVERAGE(N67:N78)","v":{"$error":"#DIV/0!"}},{"$f":"MAX(O67:O78)","v":0}]

{"sheet":"Particulates","index":18,"n_rows":79,"n_cols":17,"rows_kept":79,"cut":false,"hidden":false,"merged":[[3,16,7,18],[9,16,11,18],[12,16,15,18],[66,9,78,9],[4,1,4,3],[4,4,4,6],[4,9,4,14],[6,9,18,9],[21,9,33,9],[36,9,48,9],[47,0,47,6],[48,0,51,6],[51,9,63,9]]}
[{"$f":"+'Cover Page'!$B$29","v":"Annual Performance Report 2021"},null,null,null,{"$f":"+'Cover Page'!$B$33","v":"Lakeside Energy from Waste Limited"}]
[]
["Monitoring of Particulate matter emissions",null,null,"Whole Installation",null,null,"See  Notes in Cell Q3",null,null,{"$f":"+A3","v":"Monitoring of Particulate matter emissions"},null,null,null,"Per Combustion Line",null,null,"Notes:"]
[null,null,null,null,null,null,null,null,null,null,null,null,null,null,null,null,"User to add logic to complete Whole installation, Table A5:G18. From the data in Per Combustion Line, Table J6:O79, subject to No. of lines installed"]
["mg/Nm3","1/2 Hourly Reference Periods",null,null,"Daily Reference Periods"]
[2021,"1/2 hourly PM ELV","Monthly 1/2 hourly mean","Highest 1/2 hourly maximum","Daily PM ELV","Monthly daily mean","Highest daily maximum",null,null,{"$f":"+A6","v":2021},"mg/Nm3","Monthly 1/2 hourly mean","Monthly 1/2 hourly maximum","Monthly daily mean","Monthly daily maximum"]
["Jan",30,{"$f":"(L7+L22)/2","v":1.67},{"$f":"(M7+M22)/2","v":12.28},10,{"$f":"(N7+N22)/2","v":1.58},{"$f":"(O7+O22)/2","v":3.94},null,null,"A1","Jan",0.97,1.91,0.97,1.25]
["Feb",30,{"$f":"(L8+L23)/2","v":0.79500000000000004},2.1399999999999997,10,{"$f":"(N8+N23)/2","v":0.79500000000000004},1.24,null,null,null,"Feb",0.81,1.71,0.81,1.19]
["Mar",30,{"$f":"(L9+L24)/2","v":0.82499999999999996},2.2650000000000001,10,{"$f":"(N9+N24)/2","v":0.82499999999999996},1.2050000000000001,null,null,null,"Mar",0.98,2.54,0.98,1.39,null,"Whole Installation table A5:G18:"]
["Apr",30,{"$f":"(L10+L25)/2","v":1.04},51.645000000000003,10,{"$f":"(N10+N25)/2","v":1.04},4.03,null,null,null,"Apr",0.82,17.89,0.82,1.6,null,"Mean: for 1/2 hourly and daily periods calculate mean of values across all operational combustion lines for the month"]
["May",30,{"$f":"(L11+L26)/2","v":0.77500000000000002},1.6099999999999999,10,{"$f":"(N11+N26)/2","v":0.77500000000000002},0.97499999999999987,null,null,null,"May",0.64,1.32,0.64,0.82]
["Jun",30,{"$f":"(L12+L27)/2","v":0.88},10.620000000000001,10,{"$f":"(N12+N27)/2","v":0.89500000000000002},5.0650000000000004,null,null,null,"Jun",0.53,2.5099999999999998,0.52,0.9]
["Jul",30,{"$f":"(L13+L28)/2","v":0.63500000000000001},2.14,10,{"$f":"(N13+N28)/2","v":0.63500000000000001},0.88500000000000001,null,null,null,"Jul",0.52,2.2200000000000002,0.52,0.85,null,"Maximum: for 1/2 hourly and daily periods use the highest value across all operational combustion lines for the month"]
["Aug",30,{"$f":"(L14+L29)/2","v":0.63500000000000001},2.85,10,{"$f":"(N14+N29)/2","v":0.63500000000000001},0.92999999999999994,null,null,null,"Aug",0.56999999999999995,3.23,0.56999999999999995,0.87]
["Sep",30,{"$f":"(L15+L30)/2","v":0.81500000000000006},11.365,10,{"$f":"(N15+N30)/2","v":0.745},2.2850000000000001,null,null,null,"Sep",1.07,1,1.07,3.67]
["Oct",30,{"$f":"(L16+L31)/2","v":1.2849999999999999},10.3,10,{"$f":"(N16+N31)/2","v":1.2849999999999999},3.55,null,null,null,"Oct",2.34,11.48,2.34,5.31]
["Nov",30,{"$f":"(L17+L32)/2","v":5.5E-2},1.1100000000000001,10,{"$f":"(N17+N32)/2","v":5.5E-2},7.0000000000000007E-2,null,null,null,"Nov",0,1.35,0,0]
["Dec",30,{"$f":"(L18+L33)/2","v":0.33500000000000002},6.5350000000000001,10,{"$f":"(N18+N33)/2","v":0.33500000000000002},4.7450000000000001,null,null,null,"Dec",0.55000000000000004,12.73,0.55000000000000004,9.34]
[null,null,null,null,null,null,null,null,null,null,"Annual",{"$f":"AVERAGE(L7:L18)","v":0.81666666666666676},{"$f":"MAX(M7:M18)","v":17.89},{"$f":"AVERAGE(N7:N18)","v":0.81583333333333341},{"$f":"MAX(O7:O18)","v":9.34}]
[]
[null,null,null,null,null,null,null,null,null,{"$f":"+A6","v":2021},"mg/Nm3","Monthly 1/2 hourly mean","Monthly 1/2 hourly maximum","Monthly daily mean","Monthly daily maximum"]
[null,null,null,null,null,null,null,null,null,"A2","Jan",2.37,22.65,2.19,6.63]
[null,null,null,null,null,null,null,null,null,null,"Feb",0.78,2.57,0.78,1.29]
[null,null,null,null,null,null,null,null,null,null,"Mar",0.67,1.99,0.67,1.02]
[null,null,null,null,null,null,null,null,null,null,"Apr",1.26,85.4,1.26,6.46]
[null,null,null,null,null,null,null,null,null,null,"May",0.91,1.9,0.91,1.1299999999999999]
[null,null,null,null,null,null,null,null,null,null,"Jun",1.23,18.73,1.27,9.23]
[null,null,null,null,null,null,null,null,null,null,"Jul",0.75,2.06,0.75,0.92]
[null,null,null,null,null,null,null,null,null,null,"Aug",0.7,2.4700000000000002,0.7,0.99]
[null,null,null,null,null,null,null,null,null,null,"Sep",0.56000000000000005,21.73,0.42,0.9]
[null,null,null,null,null,null,null,null,null,null,"Oct",0.23,9.1199999999999992,0.23,1.79]
[null,null,null,null,null,null,null,null,null,null,"Nov",0.11,0.87,0.11,0.14000000000000001]
[null,null,null,null,null,null,null,null,null,null,"Dec",0.12,0.34,0.12,0.15]
[null,null,null,null,null,null,null,null,null,null,"Annual",{"$f":"AVERAGE(L22:L33)","v":0.8075},{"$f":"MAX(M22:M33)","v":85.4},{"$f":"AVERAGE(N22:N33)","v":0.78416666666666657},{"$f":"MAX(O22:O33)","v":9.23}]
[]
[null,null,null,null,null,null,null,null,null,{"$f":"+A6","v":2021},"mg/Nm3","Monthly 1/2 hourly mean","Monthly 1/2 hourly maximum","Monthly daily mean","Monthly daily maximum"]
[null,null,null,null,null,null,null,null,null,"A3","Jan"]
[null,null,null,null,null,null,null,null,null,null,"Feb"]
[null,null,null,null,null,null,null,null,null,null,"Mar"]
[null,null,null,null,null,null,null,null,null,null,"Apr"]
[null,null,null,null,null,null,null,null,null,null,"May"]
[null,null,null,null,null,null,null,null,null,null,"Jun"]
[null,null,null,null,null,null,null,null,null,null,"Jul"]
[null,null,null,null,null,null,null,null,null,null,"Aug"]
[null,null,null,null,null,null,null,null,null,null,"Sep"]
[null,null,null,null,null,null,null,null,null,null,"Oct"]
[null,null,null,null,null,null,null,null,null,null,"Nov"]
["Comments :",null,null,null,null,null,null,null,null,null,"Dec"]
[null,null,null,null,null,null,null,null,null,null,"Annual",{"$f":"AVERAGE(L37:L48)","v":{"$error":"#DIV/0!"}},{"$f":"MAX(M37:M48)","v":0},{"$f":"AVERAGE(N37:N48)","v":{"$error":"#DIV/0!"}},{"$f":"MAX(O37:O48)","v":0}]
[]
[null,null,null,null,null,null,null,null,null,{"$f":"+A6","v":2021},"mg/Nm3","Monthly 1/2 hourly mean","Monthly 1/2 hourly maximum","Monthly daily mean","Monthly daily maximum"]
[null,null,null,null,null,null,null,null,null,"A4","Jan"]
[null,null,null,null,null,null,null,null,null,null,"Feb"]
[null,null,null,null,null,null,null,null,null,null,"Mar"]
[null,null,null,null,null,null,null,null,null,null,"Apr"]
[null,null,null,null,null,null,null,null,null,null,"May"]
[null,null,null,null,null,null,null,null,null,null,"Jun"]
[null,null,null,null,null,null,null,null,null,null,"Jul"]
[null,null,null,null,null,null,null,null,null,null,"Aug"]
[null,null,null,null,null,null,null,null,null,null,"Sep"]
[null,null,null,null,null,null,null,null,null,null,"Oct"]
[null,null,null,null,null,null,null,null,null,null,"Nov"]
[null,null,null,null,null,null,null,null,null,null,"Dec"]
[null,null,null,null,null,null,null,null,null,null,"Annual",{"$f":"AVERAGE(L52:L63)","v":{"$error":"#DIV/0!"}},{"$f":"MAX(M52:M63)","v":0},{"$f":"AVERAGE(N52:N63)","v":{"$error":"#DIV/0!"}},{"$f":"MAX(O52:O63)","v":0}]
[]
[null,null,null,null,null,null,null,null,null,{"$f":"+A6","v":2021},"mg/Nm3","Monthly 1/2 hourly mean","Monthly 1/2 hourly maximum","Monthly daily mean","Monthly daily maximum"]
[null,null,null,null,null,null,null,null,null,"A5","Jan"]
[null,null,null,null,null,null,null,null,null,null,"Feb"]
[null,null,null,null,null,null,null,null,null,null,"Mar"]
[null,null,null,null,null,null,null,null,null,null,"Apr"]
[null,null,null,null,null,null,null,null,null,null,"May"]
[null,null,null,null,null,null,null,null,null,null,"Jun"]
[null,null,null,null,null,null,null,null,null,null,"Jul"]
[null,null,null,null,null,null,null,null,null,null,"Aug"]
[null,null,null,null,null,null,null,null,null,null,"Sep"]
[null,null,null,null,null,null,null,null,null,null,"Oct"]
[null,null,null,null,null,null,null,null,null,null,"Nov"]
[null,null,null,null,null,null,null,null,null,null,"Dec"]
[null,null,null,null,null,null,null,null,null,null,"Annual",{"$f":"AVERAGE(L67:L78)","v":{"$error":"#DIV/0!"}},{"$f":"MAX(M67:M78)","v":0},{"$f":"AVERAGE(N67:N78)","v":{"$error":"#DIV/0!"}},{"$f":"MAX(O67:O78)","v":0}]

{"sheet":"CO 0.5hourly","index":19,"n_rows":79,"n_cols":17,"rows_kept":79,"cut":false,"hidden":false,"merged":[[3,16,7,18],[9,16,11,18],[12,16,15,18],[66,9,78,9],[4,1,4,3],[4,4,4,6],[4,9,4,14],[6,9,18,9],[21,9,33,9],[36,9,48,9],[47,0,47,6],[48,0,51,6],[51,9,63,9]]}
[{"$f":"+'Cover Page'!$B$29","v":"Annual Performance Report 2021"},null,null,null,{"$f":"+'Cover Page'!$B$33","v":"Lakeside Energy from Waste Limited"}]
[]
["Monitoring of Carbon Monoxide (half hourly)",null,null,"Whole Installation",null,null,"See  Notes in Cell Q3",null,null,{"$f":"+A3","v":"Monitoring of Carbon Monoxide (half hourly)"},null,null,null,"Per Combustion Line",null,null,"Notes:"]
[null,null,null,null,null,null,null,null,null,null,null,null,null,null,null,null,"User to add logic to complete Whole installation, Table A5:G18. From the data in Per Combustion Line, Table J6:O79, subject to No. of lines installed"]
["mg/Nm3","1/2 Hourly Reference Periods",null,null,"Daily Reference Periods"]
[{"$f":"+'Cover Page'!C39","v":2021},"1/2 hourly CO ELV","Monthly 1/2 hourly mean","Highest 1/2 hourly maximum","Daily CO ELV","Monthly daily mean","Highest daily maximum",null,null,{"$f":"+A6","v":2021},"mg/Nm3","Monthly 1/2 hourly mean","Monthly 1/2 hourly maximum","Monthly daily mean","Monthly daily maximum"]
["Jan",100,null,null,50,null,null,null,null,"A1","Jan"]
["Feb",{"$f":"+B7","v":100},null,null,{"$f":"+E7","v":50},null,null,null,null,null,"Feb"]
["Mar",{"$f":"+B8","v":100},null,null,{"$f":"+E8","v":50},null,null,null,null,null,"Mar",null,null,null,null,null,"Whole Installation table A5:G18:"]
["Apr",100,null,null,50,null,null,null,null,null,"Apr",null,null,null,null,null,"Mean: for 1/2 hourly and daily periods calculate mean of values across all operational combustion lines for the month"]
["May",100,null,null,50,null,null,null,null,null,"May"]
["Jun",100,null,null,50,null,null,null,null,null,"Jun"]
["Jul",100,null,null,50,null,null,null,null,null,"Jul",null,null,null,null,null,"Maximum: for 1/2 hourly and daily periods use the highest value across all operational combustion lines for the month"]
["Aug",100,null,null,50,null,null,null,null,null,"Aug"]
["Sep",100,null,null,50,null,null,null,null,null,"Sep"]
["Oct",100,null,null,50,null,null,null,null,null,"Oct"]
["Nov",100,null,null,50,null,null,null,null,null,"Nov"]
["Dec",100,null,null,50,null,null,null,null,null,"Dec"]
[null,null,null,null,null,null,null,null,null,null,"Annual",{"$f":"AVERAGE(L7:L18)","v":{"$error":"#DIV/0!"}},{"$f":"MAX(M7:M18)","v":0},{"$f":"AVERAGE(N7:N18)","v":{"$error":"#DIV/0!"}},{"$f":"MAX(O7:O18)","v":0}]
[]
[null,null,null,null,null,null,null,null,null,{"$f":"+A6","v":2021},"mg/Nm3","Monthly 1/2 hourly mean","Monthly 1/2 hourly maximum","Monthly daily mean","Monthly daily maximum"]
[null,null,null,null,null,null,null,null,null,"A2","Jan"]
[null,null,null,null,null,null,null,null,null,null,"Feb"]
[null,null,null,null,null,null,null,null,null,null,"Mar"]
[null,null,null,null,null,null,null,null,null,null,"Apr"]
[null,null,null,null,null,null,null,null,null,null,"May"]
[null,null,null,null,null,null,null,null,null,null,"Jun"]
[null,null,null,null,null,null,null,null,null,null,"Jul"]
[null,null,null,null,null,null,null,null,null,null,"Aug"]
[null,null,null,null,null,null,null,null,null,null,"Sep"]
[null,null,null,null,null,null,null,null,null,null,"Oct"]
[null,null,null,null,null,null,null,null,null,null,"Nov"]
[null,null,null,null,null,null,null,null,null,null,"Dec"]
[null,null,null,null,null,null,null,null,null,null,"Annual",{"$f":"AVERAGE(L22:L33)","v":{"$error":"#DIV/0!"}},{"$f":"MAX(M22:M33)","v":0},{"$f":"AVERAGE(N22:N33)","v":{"$error":"#DIV/0!"}},{"$f":"MAX(O22:O33)","v":0}]
[]
[null,null,null,null,null,null,null,null,null,{"$f":"+A6","v":2021},"mg/Nm3","Monthly 1/2 hourly mean","Monthly 1/2 hourly maximum","Monthly daily mean","Monthly daily maximum"]
[null,null,null,null,null,null,null,null,null,"A3","Jan"]
[null,null,null,null,null,null,null,null,null,null,"Feb"]
[null,null,null,null,null,null,null,null,null,null,"Mar"]
[null,null,null,null,null,null,null,null,null,null,"Apr"]
[null,null,null,null,null,null,null,null,null,null,"May"]
[null,null,null,null,null,null,null,null,null,null,"Jun"]
[null,null,null,null,null,null,null,null,null,null,"Jul"]
[null,null,null,null,null,null,null,null,null,null,"Aug"]
[null,null,null,null,null,null,null,null,null,null,"Sep"]
[null,null,null,null,null,null,null,null,null,null,"Oct"]
[null,null,null,null,null,null,null,null,null,null,"Nov"]
["Comments :",null,null,null,null,null,null,null,null,null,"Dec"]
[null,null,null,null,null,null,null,null,null,null,"Annual",{"$f":"AVERAGE(L37:L48)","v":{"$error":"#DIV/0!"}},{"$f":"MAX(M37:M48)","v":0},{"$f":"AVERAGE(N37:N48)","v":{"$error":"#DIV/0!"}},{"$f":"MAX(O37:O48)","v":0}]
[]
[null,null,null,null,null,null,null,null,null,{"$f":"+A6","v":2021},"mg/Nm3","Monthly 1/2 hourly mean","Monthly 1/2 hourly maximum","Monthly daily mean","Monthly daily maximum"]
[null,null,null,null,null,null,null,null,null,"A4","Jan"]
[null,null,null,null,null,null,null,null,null,null,"Feb"]
[null,null,null,null,null,null,null,null,null,null,"Mar"]
[null,null,null,null,null,null,null,null,null,null,"Apr"]
[null,null,null,null,null,null,null,null,null,null,"May"]
[null,null,null,null,null,null,null,null,null,null,"Jun"]
[null,null,null,null,null,null,null,null,null,null,"Jul"]
[null,null,null,null,null,null,null,null,null,null,"Aug"]
[null,null,null,null,null,null,null,null,null,null,"Sep"]
[null,null,null,null,null,null,null,null,null,null,"Oct"]
[null,null,null,null,null,null,null,null,null,null,"Nov"]
[null,null,null,null,null,null,null,null,null,null,"Dec"]
[null,null,null,null,null,null,null,null,null,null,"Annual",{"$f":"AVERAGE(L52:L63)","v":{"$error":"#DIV/0!"}},{"$f":"MAX(M52:M63)","v":0},{"$f":"AVERAGE(N52:N63)","v":{"$error":"#DIV/0!"}},{"$f":"MAX(O52:O63)","v":0}]
[]
[null,null,null,null,null,null,null,null,null,{"$f":"+A6","v":2021},"mg/Nm3","Monthly 1/2 hourly mean","Monthly 1/2 hourly maximum","Monthly daily mean","Monthly daily maximum"]
[null,null,null,null,null,null,null,null,null,"A5","Jan"]
[null,null,null,null,null,null,null,null,null,null,"Feb"]
[null,null,null,null,null,null,null,null,null,null,"Mar"]
[null,null,null,null,null,null,null,null,null,null,"Apr"]
[null,null,null,null,null,null,null,null,null,null,"May"]
[null,null,null,null,null,null,null,null,null,null,"Jun"]
[null,null,null,null,null,null,null,null,null,null,"Jul"]
[null,null,null,null,null,null,null,null,null,null,"Aug"]
[null,null,null,null,null,null,null,null,null,null,"Sep"]
[null,null,null,null,null,null,null,null,null,null,"Oct"]
[null,null,null,null,null,null,null,null,null,null,"Nov"]
[null,null,null,null,null,null,null,null,null,null,"Dec"]
[null,null,null,null,null,null,null,null,null,null,"Annual",{"$f":"AVERAGE(L67:L78)","v":{"$error":"#DIV/0!"}},{"$f":"MAX(M67:M78)","v":0},{"$f":"AVERAGE(N67:N78)","v":{"$error":"#DIV/0!"}},{"$f":"MAX(O67:O78)","v":0}]

{"sheet":"CO 95% 10 min","index":20,"n_rows":79,"n_cols":19,"rows_kept":79,"cut":false,"hidden":false,"merged":[[3,18,7,20],[9,18,11,20],[12,18,15,20],[66,10,78,10],[4,1,4,4],[4,5,4,7],[4,10,4,16],[6,10,18,10],[21,10,33,10],[36,10,48,10],[47,0,47,7],[48,0,51,7],[51,10,63,10]]}
[{"$f":"+'Cover Page'!$B$29","v":"Annual Performance Report 2021"},null,null,null,{"$f":"+'Cover Page'!$B$33","v":"Lakeside Energy from Waste Limited"}]
[]
["Monitoring of Carbon Monoxide (10-minute avg)",null,null,null,"Whole Installation",null,null,"See  Notes in Cell S3",null,{"$f":"+A3","v":"Monitoring of Carbon Monoxide (10-minute avg)"},null,null,null,null,"Per Combustion Line",null,"Notes:",null,"Notes:"]
[null,null,null,null,null,null,null,null,null,null,null,null,null,null,null,null,null,null,"User to add logic to complete Whole installation, Table A5:H18. From the data in Per Combustion Line, Table K6:Q79, subject to No. of lines installed"]
["mg/Nm3","10-minute Reference Periods",null,null,null,"Daily Reference Periods"]
[2021,"95%ile 10-min avg CO ELV","95%ile 10-min avg maximum","Monthly CO 10-min avg mean","10-min avg maximum","Daily CO ELV","Monthly daily mean","Highest daily maximum",null,null,{"$f":"+A6","v":2021},"mg/Nm3","95%ile 10-min avg maximum","Monthly CO 10-min avg mean","10-min avg maximum","Monthly daily mean","Monthly daily maximum"]
["Jan",150,{"$f":"(M7+M22)/2","v":10.625},{"$f":"(N7+N22)/2","v":2.4450000000000003},{"$f":"(O7+O22)/2","v":269.36},50,{"$f":"(P7+P22)/2","v":1.5899999999999999},{"$f":"(Q7+Q22)/2","v":4.17},null,null,"A1","Jan",8.7799999999999994,2.89,161.72,2.9,4.9000000000000004]
["Feb",{"$f":"+B7","v":150},{"$f":"(M8+M23)/2","v":20.59},{"$f":"(N8+N23)/2","v":3.1349999999999998},154.32499999999999,{"$f":"+F7","v":50},{"$f":"(P8+P23)/2","v":3.1349999999999998},6.8450000000000006,null,null,null,"Feb",21.41,3.73,82.91,3.73,7.98]
["Mar",{"$f":"+B8","v":150},12.870000000000001,{"$f":"(N9+N24)/2","v":3.5549999999999997},110.24,{"$f":"+F8","v":50},{"$f":"(P9+P24)/2","v":3.3200000000000003},5.6050000000000004,null,null,null,"Mar",14.57,3.65,152.79,3.19,6.04,null,"Whole Installation table A5:H18:"]
["Apr",150,14.625,{"$f":"(N10+N25)/2","v":2.9649999999999999},344.29500000000002,50,{"$f":"(P10+P25)/2","v":2.5150000000000001},6.3149999999999995,null,null,null,"Apr",14.28,3.19,458.92,2.29,6.5,null,"Mean: for 10-min and daily periods use average of all operational combustion lines."]
["May",150,12.22,{"$f":"(N11+N26)/2","v":2.04},383.67,50,{"$f":"(P11+P26)/2","v":3.5550000000000002},5.9350000000000005,null,null,null,"May",12.13,2.36,195.6,5.58,6.04]
["Jun",150,54.67,{"$f":"(N12+N27)/2","v":4.12},641.01499999999999,50,{"$f":"(P12+P27)/2","v":2.3449999999999998},16.035,null,null,null,"Jun",93.56,5.9,1002.99,2.35,26.03]
["Jul",150,15.719999999999999,{"$f":"(N13+N28)/2","v":3.145},769.81500000000005,50,{"$f":"(P13+P28)/2","v":2.89},9.33,null,null,null,"Jul",18.88,2.35,508.72,1.81,7.32,null,"Maximum: for 10-min and daily periods use the highest of all operational combustion lines in any month."]
["Aug",150,21.299999999999997,{"$f":"(N14+N29)/2","v":2.145},337.46000000000004,50,{"$f":"(P14+P29)/2","v":2.395},7.1849999999999996,null,null,null,"Aug",18.79,2.19,206.99,2.67,4.0999999999999996]
["Sep",150,56.754999999999995,{"$f":"(N15+N30)/2","v":2.75},429.46000000000004,50,{"$f":"(P15+P30)/2","v":1.2},16.634999999999998,null,null,null,"Sep",50.87,2.86,687.94,0.38,16.14]
["Oct",150,7.9649999999999999,{"$f":"(N16+N31)/2","v":0.19},257.435,50,{"$f":"(P16+P31)/2","v":7.4999999999999997E-2},2.125,null,null,null,"Oct",4.8099999999999996,0.38,263.10000000000002,0.15,2.4700000000000002]
["Nov",150,7.8000000000000007,{"$f":"(N17+N32)/2","v":0.45},168.375,50,{"$f":"(P17+P32)/2","v":0.83499999999999996},3.3650000000000002,null,null,null,"Nov",5.63,0.15,127.81,0.92,2.2400000000000002]
["Dec",150,10.32,{"$f":"(N18+N33)/2","v":2.105},579.02499999999998,50,{"$f":"(P18+P33)/2","v":3.0449999999999999},6.38,null,null,null,"Dec",3.98,0.92,417.07,3,6.72]
[null,null,null,null,null,null,null,null,null,null,null,"Annual",{"$f":"AVERAGE(M7:M18)","v":22.307500000000001},{"$f":"AVERAGE(N7:N18)","v":2.5474999999999999},{"$f":"MAX(O7:O18)","v":1002.99},{"$f":"AVERAGE(P7:P18)","v":2.4141666666666661},{"$f":"MAX(Q7:Q18)","v":26.03}]
[]
[null,null,null,null,null,null,null,null,null,null,{"$f":"+A6","v":2021},"mg/Nm3","95%ile 10-min avg maximum","Monthly CO 10-min avg mean","10-min avg maximum","Monthly daily mean","Monthly daily maximum"]
[null,null,null,null,null,null,null,null,null,null,"A2","Jan",12.47,2,377,0.28000000000000003,3.44]
[null,null,null,null,null,null,null,null,null,null,null,"Feb",19.77,2.54,225.74,2.54,5.71]
[null,null,null,null,null,null,null,null,null,null,null,"Mar",11.17,3.46,67.69,3.45,5.17]
[null,null,null,null,null,null,null,null,null,null,null,"Apr",14.97,2.74,229.67,2.74,6.13]
[null,null,null,null,null,null,null,null,null,null,null,"May",12.31,1.72,571.74,1.53,5.83]
[null,null,null,null,null,null,null,null,null,null,null,"Jun",15.78,2.34,279.04000000000002,2.34,6.04]
[null,null,null,null,null,null,null,null,null,null,null,"Jul",12.56,3.94,1030.9100000000001,3.97,11.34]
[null,null,null,null,null,null,null,null,null,null,null,"Aug",23.81,2.1,467.93,2.12,10.27]
[null,null,null,null,null,null,null,null,null,null,null,"Sep",62.64,2.64,170.98,2.02,17.13]
[null,null,null,null,null,null,null,null,null,null,null,"Oct",11.12,0,251.77,0,1.78]
[null,null,null,null,null,null,null,null,null,null,null,"Nov",9.9700000000000006,0.75,208.94,0.75,4.49]
[null,null,null,null,null,null,null,null,null,null,null,"Dec",16.66,3.29,740.98,3.09,6.04]
[null,null,null,null,null,null,null,null,null,null,null,"Annual",{"$f":"AVERAGE(M22:M33)","v":18.602500000000003},{"$f":"AVERAGE(N22:N33)","v":2.2933333333333334},{"$f":"MAX(O22:O33)","v":1030.9100000000001},{"$f":"AVERAGE(P22:P33)","v":2.0691666666666668},{"$f":"MAX(Q22:Q33)","v":17.13}]
[]
[null,null,null,null,null,null,null,null,null,null,{"$f":"+A6","v":2021},"mg/Nm3","95%ile 10-min avg maximum","Monthly CO 10-min avg mean","10-min avg maximum","Monthly daily mean","Monthly daily maximum"]
[null,null,null,null,null,null,null,null,null,null,"A3","Jan"]
[null,null,null,null,null,null,null,null,null,null,null,"Feb"]
[null,null,null,null,null,null,null,null,null,null,null,"Mar"]
[null,null,null,null,null,null,null,null,null,null,null,"Apr"]
[null,null,null,null,null,null,null,null,null,null,null,"May"]
[null,null,null,null,null,null,null,null,null,null,null,"Jun"]
[null,null,null,null,null,null,null,null,null,null,null,"Jul"]
[null,null,null,null,null,null,null,null,null,null,null,"Aug"]
[null,null,null,null,null,null,null,null,null,null,null,"Sep"]
[null,null,null,null,null,null,null,null,null,null,null,"Oct"]
[null,null,null,null,null,null,null,null,null,null,null,"Nov"]
["Comments :",null,null,null,null,null,null,null,null,null,null,"Dec"]
["Environment Agency explanatory note: The 10-minute average ELV is based on the “95th percentile”. In this case this means that 95% of the 10 minute averages in the relevant 24-hour period (i.e. 137) must be below 150 mg/Nm3, and 5% (i.e. 7) are allowed to be any value above 150 mg/Nm3. Whilst we expect operators to minimise CO emissions at all times, it is perfectly acceptable for the value of the maximum 10-minute average to be above 150 mg/Nm3, provided the 95th percentile ELV has been met for that period. ",null,null,null,null,null,null,null,null,null,null,"Annual",{"$f":"AVERAGE(M37:M48)","v":{"$error":"#DIV/0!"}},null,{"$f":"MAX(O37:O48)","v":0},{"$f":"AVERAGE(P37:P48)","v":{"$error":"#DIV/0!"}},{"$f":"MAX(Q37:Q48)","v":0}]
[]
[null,null,null,null,null,null,null,null,null,null,{"$f":"+A6","v":2021},"mg/Nm3","95%ile 10-min avg maximum","Monthly CO 10-min avg mean","10-min avg maximum","Monthly daily mean","Monthly daily maximum"]
[null,null,null,null,null,null,null,null,null,null,"A4","Jan"]
[null,null,null,null,null,null,null,null,null,null,null,"Feb"]
[null,null,null,null,null,null,null,null,null,null,null,"Mar"]
[null,null,null,null,null,null,null,null,null,null,null,"Apr"]
[null,null,null,null,null,null,null,null,null,null,null,"May"]
[null,null,null,null,null,null,null,null,null,null,null,"Jun"]
[null,null,null,null,null,null,null,null,null,null,null,"Jul"]
[null,null,null,null,null,null,null,null,null,null,null,"Aug"]
[null,null,null,null,null,null,null,null,null,null,null,"Sep"]
[null,null,null,null,null,null,null,null,null,null,null,"Oct"]
[null,null,null,null,null,null,null,null,null,null,null,"Nov"]
[null,null,null,null,null,null,null,null,null,null,null,"Dec"]
[null,null,null,null,null,null,null,null,null,null,null,"Annual",{"$f":"AVERAGE(M52:M63)","v":{"$error":"#DIV/0!"}},null,{"$f":"MAX(O52:O63)","v":0},{"$f":"AVERAGE(P52:P63)","v":{"$error":"#DIV/0!"}},{"$f":"MAX(Q52:Q63)","v":0}]
[]
[null,null,null,null,null,null,null,null,null,null,{"$f":"+A6","v":2021},"mg/Nm3","95%ile 10-min avg maximum","Monthly CO 10-min avg mean","10-min avg maximum","Monthly daily mean","Monthly daily maximum"]
[null,null,null,null,null,null,null,null,null,null,"A5","Jan"]
[null,null,null,null,null,null,null,null,null,null,null,"Feb"]
[null,null,null,null,null,null,null,null,null,null,null,"Mar"]
[null,null,null,null,null,null,null,null,null,null,null,"Apr"]
[null,null,null,null,null,null,null,null,null,null,null,"May"]
[null,null,null,null,null,null,null,null,null,null,null,"Jun"]
[null,null,null,null,null,null,null,null,null,null,null,"Jul"]
[null,null,null,null,null,null,null,null,null,null,null,"Aug"]
[null,null,null,null,null,null,null,null,null,null,null,"Sep"]
[null,null,null,null,null,null,null,null,null,null,null,"Oct"]
[null,null,null,null,null,null,null,null,null,null,null,"Nov"]
[null,null,null,null,null,null,null,null,null,null,null,"Dec"]
[null,null,null,null,null,null,null,null,null,null,null,"Annual",{"$f":"AVERAGE(M67:M78)","v":{"$error":"#DIV/0!"}},null,{"$f":"MAX(O67:O78)","v":0},{"$f":"AVERAGE(P67:P78)","v":{"$error":"#DIV/0!"}},{"$f":"MAX(Q67:Q78)","v":0}]

{"sheet":"NH3","index":21,"n_rows":79,"n_cols":17,"rows_kept":79,"cut":false,"hidden":false,"merged":[[3,16,7,18],[9,16,11,18],[12,16,15,18],[66,9,78,9],[4,1,4,3],[4,4,4,6],[4,9,4,14],[6,9,18,9],[21,9,33,9],[36,9,48,9],[47,0,47,6],[48,0,51,6],[51,9,63,9]]}
[{"$f":"+'Cover Page'!$B$29","v":"Annual Performance Report 2021"},null,null,null,{"$f":"+'Cover Page'!$B$33","v":"Lakeside Energy from Waste Limited"}]
[]
["Monitoring of Ammnonia emissions ",null,null,"Whole Installation",null,null,"See  Notes in Cell Q3",null,null,{"$f":"+A3","v":"Monitoring of Ammnonia emissions "},null,null,null,"Per Combustion Line",null,null,"Notes:"]
[null,null,null,null,null,null,null,null,null,null,null,null,null,null,null,null,"User to add logic to complete Whole installation, Table A5:G18. From the data in Per Combustion Line, Table J6:O79, subject to No. of lines installed"]
["mg/Nm3","1/2 Hourly Reference Periods",null,null,"Daily Reference Periods"]
[2021,"1/2 hourly NH3 ELV","Monthly 1/2 hourly mean","Highest 1/2 hourly maximum","Daily NH3 ELV","Monthly daily mean","Highest daily maximum",null,null,{"$f":"+A6","v":2021},"mg/Nm3","Monthly 1/2 hourly mean","Monthly 1/2 hourly maximum","Monthly daily mean","Monthly daily maximum"]
["Jan",0,{"$f":"(L7+L22)/2","v":0.19},{"$f":"(M7+M22)/2","v":30.990000000000002},10,{"$f":"(N7+N22)/2","v":0.08},{"$f":"(O7+O22)/2","v":0.27500000000000002},null,null,"A1","Jan",0.09,1.92,0.09,0.33]
["Feb",{"$f":"+B7","v":0},{"$f":"(L8+L23)/2","v":0.05},3.4249999999999998,{"$f":"+E7","v":10},{"$f":"(N8+N23)/2","v":0.05},0.48499999999999999,null,null,null,"Feb",0,1.01,0,0.09]
["Mar",{"$f":"+B8","v":0},{"$f":"(L9+L24)/2","v":0.02},2.9,{"$f":"+E8","v":10},{"$f":"(N9+N24)/2","v":0.02},0.85000000000000009,null,null,null,"Mar",0,5.54,0,1.62,null,"Whole Installation table A5:G18:"]
["Apr",0,{"$f":"(L10+L25)/2","v":0.03},0.28000000000000003,10,{"$f":"(N10+N25)/2","v":0.03},5.5E-2,null,null,null,"Apr",0,0.16,0,0,null,"Mean: for 1/2 hourly and daily periods calculate mean of values across all operational combustion lines for the month"]
["May",0,{"$f":"(L11+L26)/2","v":0.03},3.0599999999999996,10,{"$f":"(N11+N26)/2","v":0.03},0.22499999999999998,null,null,null,"May",0,4.2699999999999996,0,0.21]
["Jun",0,{"$f":"(L12+L27)/2","v":0.31},48.724999999999994,10,{"$f":"(N12+N27)/2","v":0.125},2.1349999999999998,null,null,null,"Jun",0.4,87.71,0.03,0.71]
["Jul",0,{"$f":"(L13+L28)/2","v":4.9999999999999996E-2},8.92,10,{"$f":"(N13+N28)/2","v":3.5000000000000003E-2},0.28999999999999998,null,null,null,"Jul",0.01,6.25,0,0.41,null,"Maximum: for 1/2 hourly and daily periods use the highest value across all operational combustion lines for the month"]
["Aug",0,{"$f":"(L14+L29)/2","v":0.12},4.085,10,{"$f":"(N14+N29)/2","v":0.125},0.72,null,null,null,"Aug",0,0.24,0,0]
["Sep",0,{"$f":"(L15+L30)/2","v":0.62},41.545000000000002,10,{"$f":"(N15+N30)/2","v":0.57000000000000006},3.355,null,null,null,"Sep",0.11,22.1,0.11,1.03]
["Oct",0,{"$f":"(L16+L31)/2","v":0.06},6.8900000000000006,10,{"$f":"(N16+N31)/2","v":0.06},0.92,null,null,null,"Oct",0,6.55,0,0.81]
["Nov",0,{"$f":"(L17+L32)/2","v":0.04},2.7850000000000001,10,{"$f":"(N17+N32)/2","v":0.04},0.51,null,null,null,"Nov",0.01,4.2300000000000004,0.01,0.8]
["Dec",0,{"$f":"(L18+L33)/2","v":0.1},2.4850000000000003,10,{"$f":"(N18+N33)/2","v":9.5000000000000001E-2},0.215,null,null,null,"Dec",0.08,0.9,0.08,0.19]
[null,null,null,null,null,null,null,null,null,null,"Annual",{"$f":"AVERAGE(L7:L18)","v":5.8333333333333327E-2},{"$f":"MAX(M7:M18)","v":87.71},{"$f":"AVERAGE(N7:N18)","v":2.6666666666666668E-2},{"$f":"MAX(O7:O18)","v":1.62}]
[]
[null,null,null,null,null,null,null,null,null,{"$f":"+A6","v":2021},"mg/Nm3","Monthly 1/2 hourly mean","Monthly 1/2 hourly maximum","Monthly daily mean","Monthly daily maximum"]
[null,null,null,null,null,null,null,null,null,"A2","Jan",0.28999999999999998,60.06,7.0000000000000007E-2,0.22]
[null,null,null,null,null,null,null,null,null,null,"Feb",0.1,5.84,0.1,0.88]
[null,null,null,null,null,null,null,null,null,null,"Mar",0.04,0.26,0.04,0.08]
[null,null,null,null,null,null,null,null,null,null,"Apr",0.06,0.4,0.06,0.11]
[null,null,null,null,null,null,null,null,null,null,"May",0.06,1.85,0.06,0.24]
[null,null,null,null,null,null,null,null,null,null,"Jun",0.22,9.74,0.22,3.56]
[null,null,null,null,null,null,null,null,null,null,"Jul",0.09,11.59,7.0000000000000007E-2,0.17]
[null,null,null,null,null,null,null,null,null,null,"Aug",0.24,7.93,0.25,1.44]
[null,null,null,null,null,null,null,null,null,null,"Sep",1.1299999999999999,60.99,1.03,5.68]
[null,null,null,null,null,null,null,null,null,null,"Oct",0.12,7.23,0.12,1.03]
[null,null,null,null,null,null,null,null,null,null,"Nov",7.0000000000000007E-2,1.34,7.0000000000000007E-2,0.22]
[null,null,null,null,null,null,null,null,null,null,"Dec",0.12,4.07,0.11,0.24]
[null,null,null,null,null,null,null,null,null,null,"Annual",{"$f":"AVERAGE(L22:L33)","v":0.21166666666666667},{"$f":"MAX(M22:M33)","v":60.99},{"$f":"AVERAGE(N22:N33)","v":0.18333333333333332},{"$f":"MAX(O22:O33)","v":5.68}]
[]
[null,null,null,null,null,null,null,null,null,{"$f":"+A6","v":2021},"mg/Nm3","Monthly 1/2 hourly mean","Monthly 1/2 hourly maximum","Monthly daily mean","Monthly daily maximum"]
[null,null,null,null,null,null,null,null,null,"A3","Jan"]
[null,null,null,null,null,null,null,null,null,null,"Feb"]
[null,null,null,null,null,null,null,null,null,null,"Mar"]
[null,null,null,null,null,null,null,null,null,null,"Apr"]
[null,null,null,null,null,null,null,null,null,null,"May"]
[null,null,null,null,null,null,null,null,null,null,"Jun"]
[null,null,null,null,null,null,null,null,null,null,"Jul"]
[null,null,null,null,null,null,null,null,null,null,"Aug"]
[null,null,null,null,null,null,null,null,null,null,"Sep"]
[null,null,null,null,null,null,null,null,null,null,"Oct"]
[null,null,null,null,null,null,null,null,null,null,"Nov"]
["Comments :",null,null,null,null,null,null,null,null,null,"Dec"]
["An indicated ELV value of zero in the table above means that no ammonia limit is set in the permit.  ",null,null,null,null,null,null,null,null,null,"Annual",{"$f":"AVERAGE(L37:L48)","v":{"$error":"#DIV/0!"}},{"$f":"MAX(M37:M48)","v":0},{"$f":"AVERAGE(N37:N48)","v":{"$error":"#DIV/0!"}},{"$f":"MAX(O37:O48)","v":0}]
[]
[null,null,null,null,null,null,null,null,null,{"$f":"+A6","v":2021},"mg/Nm3","Monthly 1/2 hourly mean","Monthly 1/2 hourly maximum","Monthly daily mean","Monthly daily maximum"]
[null,null,null,null,null,null,null,null,null,"A4","Jan"]
[null,null,null,null,null,null,null,null,null,null,"Feb"]
[null,null,null,null,null,null,null,null,null,null,"Mar"]
[null,null,null,null,null,null,null,null,null,null,"Apr"]
[null,null,null,null,null,null,null,null,null,null,"May"]
[null,null,null,null,null,null,null,null,null,null,"Jun"]
[null,null,null,null,null,null,null,null,null,null,"Jul"]
[null,null,null,null,null,null,null,null,null,null,"Aug"]
[null,null,null,null,null,null,null,null,null,null,"Sep"]
[null,null,null,null,null,null,null,null,null,null,"Oct"]
[null,null,null,null,null,null,null,null,null,null,"Nov"]
[null,null,null,null,null,null,null,null,null,null,"Dec"]
[null,null,null,null,null,null,null,null,null,null,"Annual",{"$f":"AVERAGE(L52:L63)","v":{"$error":"#DIV/0!"}},{"$f":"MAX(M52:M63)","v":0},{"$f":"AVERAGE(N52:N63)","v":{"$error":"#DIV/0!"}},{"$f":"MAX(O52:O63)","v":0}]
[]
[null,null,null,null,null,null,null,null,null,{"$f":"+A6","v":2021},"mg/Nm3","Monthly 1/2 hourly mean","Monthly 1/2 hourly maximum","Monthly daily mean","Monthly daily maximum"]
[null,null,null,null,null,null,null,null,null,"A5","Jan"]
[null,null,null,null,null,null,null,null,null,null,"Feb"]
[null,null,null,null,null,null,null,null,null,null,"Mar"]
[null,null,null,null,null,null,null,null,null,null,"Apr"]
[null,null,null,null,null,null,null,null,null,null,"May"]
[null,null,null,null,null,null,null,null,null,null,"Jun"]
[null,null,null,null,null,null,null,null,null,null,"Jul"]
[null,null,null,null,null,null,null,null,null,null,"Aug"]
[null,null,null,null,null,null,null,null,null,null,"Sep"]
[null,null,null,null,null,null,null,null,null,null,"Oct"]
[null,null,null,null,null,null,null,null,null,null,"Nov"]
[null,null,null,null,null,null,null,null,null,null,"Dec"]
[null,null,null,null,null,null,null,null,null,null,"Annual",{"$f":"AVERAGE(L67:L78)","v":{"$error":"#DIV/0!"}},{"$f":"MAX(M67:M78)","v":0},{"$f":"AVERAGE(N67:N78)","v":{"$error":"#DIV/0!"}},{"$f":"MAX(O67:O78)","v":0}]